Workbook

Sheet Input for Auto Config
A1: International Responder 5000 2018 Estimate Sheet v 1.31
B2: Input Config Information | D2: Date: | F2: 2018-01-11
D3: Job Name: | F3: Angol
B4: System Config/Intergrations/Software | D4: Distributor Name: | F4: Cencomex
B5: SIP Telephony Integration (yes or no) | C5: Yes | D5: Salesperson: | F5: Cristian Yañez
B6: Audio Paging to R5K stations in rooms? (yes or no) | C6: Yes
B7: Reporting Software (yes or no) | C7: Yes
B8: TAP Output to pocket pagers/middleware (yes or no) | C8: Yes
B9: R5K Messaging App (yes or no) | C9: Yes
B10: Number of concurrent users of messaging app
B13: Typical Patient Room Stations/Corridor Lights (Drop Down) | C13: Part Number | D13: Quantity | F13: Typical Patient Room Accessories (Drop Down) | G13: Part Number | H13: Quantity
B14: CLA246 - 4Bulb/1-Point Audio R4K Corridor Light | C14: =IF(B14<>"", VLOOKUP(B14, DropDowns!A$1:B$70, 2, FALSE), "") -> CLA246 | D14: 142 | G14: =IF(F14<>"", VLOOKUP(F14,DropDowns!A$69:B$86, 2, FALSE), "") -> 
B15: R5KDC46 - 6-Point, 4-Point Audio Domeless Controller | C15: =IF(B15<>"", VLOOKUP(B15, DropDowns!A$1:B$70, 2, FALSE), "") -> R5KDC46 | D15: 218 | G15: =IF(F15<>"", VLOOKUP(F15,DropDowns!A$69:B$86, 2, FALSE), "") -> 
B16: R5KSDTY - Duty Station | C16: =IF(B16<>"", VLOOKUP(B16, DropDowns!A$1:B$70, 2, FALSE), "") -> R5KSDTY | D16: 3 | G16: =IF(F16<>"", VLOOKUP(F16,DropDowns!A$69:B$86, 2, FALSE), "") -> 
B17: R5KDC16D - 6-Point, 1 Point Audio Duty Domeless Controller | C17: =IF(B17<>"", VLOOKUP(B17, DropDowns!A$1:B$70, 2, FALSE), "") -> R5KDC16D | D17: 3 | G17: =IF(F17<>"", VLOOKUP(F17,DropDowns!A$69:B$86, 2, FALSE), "") -> 
B18: R5KPS1EA - Enhanced Single Station | C18: =IF(B18<>"", VLOOKUP(B18, DropDowns!A$1:B$70, 2, FALSE), "") -> R5KPS1EA | D18: 282 | G18: =IF(F18<>"", VLOOKUP(F18,DropDowns!A$69:B$86, 2, FALSE), "") -> 
B19: R4KPB23 - SLIM Dual Button w/ Code St | C19: =IF(B19<>"", VLOOKUP(B19, DropDowns!A$1:B$70, 2, FALSE), "") -> R4KPB23 | D19: 282 | G19: =IF(F19<>"", VLOOKUP(F19,DropDowns!A$69:B$86, 2, FALSE), "") -> 
B20: R4KPB23 - SLIM Dual Button w/ Code St | C20: =IF(B20<>"", VLOOKUP(B20, DropDowns!A$1:B$70, 2, FALSE), "") -> R4KPB23 | D20: 89 | G20: =IF(F20<>"", VLOOKUP(F20,DropDowns!A$69:B$86, 2, FALSE), "") -> 
B21: R4KPB12 - SLIM Single Button St | C21: =IF(B21<>"", VLOOKUP(B21, DropDowns!A$1:B$70, 2, FALSE), "") -> R4KPB12 | D21: 178 | G21: =IF(F21<>"", VLOOKUP(F21,DropDowns!A$69:B$86, 2, FALSE), "") -> 
B22: R4KPC11 - SLIM Pull Cord St | C22: =IF(B22<>"", VLOOKUP(B22, DropDowns!A$1:B$70, 2, FALSE), "") -> R4KPC11 | D22: 78 | G22: =IF(F22<>"", VLOOKUP(F22,DropDowns!A$69:B$86, 2, FALSE), "") -> 
C23: =IF(B23<>"", VLOOKUP(B23, DropDowns!A$1:B$70, 2, FALSE), "") ->  | G23: =IF(F23<>"", VLOOKUP(F23,DropDowns!A$69:B$86, 2, FALSE), "") -> 
C24: =IF(B24<>"", VLOOKUP(B24, DropDowns!A$1:B$70, 2, FALSE), "") ->  | G24: =IF(F24<>"", VLOOKUP(F24,DropDowns!A$69:B$86, 2, FALSE), "") -> 
C25: =IF(B25<>"", VLOOKUP(B25, DropDowns!A$1:B$70, 2, FALSE), "") ->  | G25: =IF(F25<>"", VLOOKUP(F25,DropDowns!A$69:B$86, 2, FALSE), "") -> 
C26: =IF(B26<>"", VLOOKUP(B26, DropDowns!A$1:B$70, 2, FALSE), "") ->  | G26: =IF(F26<>"", VLOOKUP(F26,DropDowns!A$69:B$86, 2, FALSE), "") -> 
C27: =IF(B27<>"", VLOOKUP(B27, DropDowns!A$1:B$70, 2, FALSE), "") ->  | G27: =IF(F27<>"", VLOOKUP(F27,DropDowns!A$69:B$86, 2, FALSE), "") -> 
A29: Instructions:
A31: 1. Make your System/Integration/Software Choices by choosing Yes or No under System Conf/Integrations/Software boxes above.
A32: 2. In the Typical Patient Room section, if you have a large number of rooms that have the same exact stations in them, choose each of those items from the Yellow drop-down box and then enter the number of rooms that have this station in the count box. By choosing the station type and entering in a quantity, this will automatically update the Quote Detail tab.
A33: 3. For all other rooms or stations, enter/edit the Quantities of each station/device individually in the next sheet, Quote Detail.
A34: 4. Based on what you enter in this sheet, the next sheet will auto update.
A35: 5. However, use the Column labeled, Enter Qty +/- to add or substract items based on your specific needs. For example, if the Auto Update selects 5 Power Supplies, but you only want 4 in the quote, enter "-1" for that item.

Sheet Labor_Installation
A1: Cost Summary
A2: Hours | B2: Rate | H2: Selling Price Summary
I3: Cost | J3: Mark-up | K3: Selling Price | M3: Profit
C4: Total Cable Selling Cost --> | E4: ='R5K Details'!M175 -> 0 | H4: Equipment | I4: =order_hack!G205 -> 147424 | J4: 1.7 | K4: =I4*J4 -> 250620.8 | M4: =K4-I4 -> 103196.8
A5: Total Labor Costs | H5: Training | I5: 0 | J5: 1.7 | K5: =I5*J5 -> 0 | M5: =K5-I5 -> 0
A6: 0 | B6: 0 | C6: Demolition Labor | E6: =B6*A6 -> 0 | H6: Cable | I6: =E4 -> 0 | J6: 1.7 | K6: =I6*J6 -> 0 | M6: =K6-I6 -> 0
A7: =order_hack!D203 -> 0 | B7: 0 | C7: Est. Shop Labor | E7: 0 | H7: Labor | I7: =E21 -> 0 | J7: 1.5 | K7: =I7*J7 -> 0 | M7: =K7-I7 -> 0
A8: ='R5K Details'!O175 -> 536 | B8: 0 | C8: Est. Cable Labor | E8: 0 | H8: Miscellaneous | I8: =E39 -> 0 | J8: 1.7 | K8: =I8*J8 -> 0 | M8: =K8-I8 -> 0
A9: =order_hack!F203 -> 839.8 | B9: 0 | C9: Est. Field Labor | E9: 0 | H9: Total --> | I9: =SUM(I4:I8) -> 147424 | K9: =SUM(K4:K8) -> 250620.8
A10: 0 | B10: 0 | C10: Engineering (7% of Dist Net hardware and Field Labor) | E10: 0 | L10: Gross Profit --> | M10: =SUM(M4:M8) -> 103196.8
A11: 0 | B11: 0 | C11: Warranty | E11: 0 | L11: Distributor Allowance --> | M11: 0
A12: 0 | B12: 0 | C12: Coordination | E12: =A12*B12 -> 0 | L12: Net Profit --> | M12: =M10-M11 -> 103196.8
A13: 0 | B13: 0 | C13: In-Service/Needs Assessment (beyond CAS) | E13: 0
A14: 0 | B14: 0 | C14: Testing / Troubleshooting / Inspection | E14: 0 | L14: Profitability --> | M14: =IF((K9<>0),(M12/K9),0) -> 0.4117647059
A15: 0 | B15: 0 | C15: Project Management | E15: 0 | J15: Total Selling Price --> | K15: =K9 -> 250620.8
A16: 0 | B16: 0 | C16: CAD Drawings | E16: 0
A17: 0 | B17: 0 | C17: Enter your own items | E17: 0 | J17: Sales Tax --> | K17: 0
A18: 0 | B18: 0 | C18: Enter your own items | E18: 0
A19: 0 | B19: 0 | C19: Enter your own items | E19: 0
A20: =SUM(A6:A19) -> 1375.8 | B20: <-- Total Labor Hours
C21: Total Labor Cost --> | E21: =SUM(E6:E19) -> 0
A22: Total Miscellaneous Costs
A23: 0 | B23: 0 | C23: Lost Time | E23: =A23*B23 -> 0
A24: 0 | B24: 0 | C24: Travel | E24: 0
A25: 0 | B25: 0 | C25: Freight | E25: 0
A26: 0 | B26: 0 | C26: Bond | E26: 0
A27: 0 | B27: 0 | C27: Parking | E27: 0
A28: 0 | B28: 0 | C28: PerDiem | E28: 0
A29: 0 | B29: 0 | C29: Subcontractors | E29: 0
A30: 0 | B30: 0 | C30: Infection Control Hardware | E30: 0
A31: 0 | B31: 0 | C31: Infection Control Labor | E31: 0
A32: 0 | B32: 0 | C32: Overtime | E32: 0
A33: 0 | B33: 0 | C33: After Hours | E33: 0
A34: 0 | B34: 0 | C34: Enter your own items | E34: 0
A35: 0 | B35: 0 | C35: Enter your own items | E35: 0
A36: 0 | B36: 0 | C36: Enter your own items | E36: 0
A37: 0 | B37: 0 | C37: Enter your own items | E37: 0
A38: =SUM(A23:A37) -> 0 | B38: <-- Total Misc. Hours
C39: Total Misc. Installation Cost --> | E39: =SUM(E23:E38) -> 0

Sheet R5K Details
A2: ='Input for Auto Config'!A1:K1 -> International Responder 5000 2018 Estimate Sheet v 1.31 | M2: Job Name: | N2: ='Input for Auto Config'!F3 -> Angol
A3: Responder 5000 System | M3: Distributor Name: | N3: ='Input for Auto Config'!F4 -> Cencomex
C4: Date: | E4: ='Input for Auto Config'!F2 -> 2018-01-11 | M4: Salesperson: | N4: ='Input for Auto Config'!F5 -> Cristian Yañez
A5: MANUF. | B5: Part # | C5: Con- 8 | D5: Con- 6 | E5: Description (Items in Purple Automatically Add Quantities in Yellow Column after Completing the Input for Auto Config Tab) | F5: Con- 8 | G5: Con- 6 | H5: Auto | I5: Add or Decrease Quantity after Completing Auto Config (See Input for Auto Config Tab) | J5: Qty | K5: List Price | L5: Current (Amps) | M5: Total Current | N5: Shop Hours | O5: Shop Total | P5: Field Hours | Q5: Field Total | R5: Notes
A6: Headend
A7: RAULAND | B7: NC2828 | E7: Head-End Equipment Cabinet | H7: =IF(J11>CEILING((J9+J10)/3,1),J11,CEILING((J9+J10)/3,1)) -> 12 | J7: =H7+I7 -> 12 | K7: =VLOOKUP(B7,'2017'!C$4:J$257,7,FALSE) -> 1680 | O7: =IF(H7*N7=0," ",H7*N7) ->  | P7: 2 | Q7: =IF(H7*P7=0," ",H7*P7) -> 24
A8: " | B8: 351102 | E8: Wall Mounting Cabinet-head-end | J8: 0 | K8: =VLOOKUP(B8,'2017'!C$4:J$257,7,FALSE) -> 1145
A9: " | B9: R5KMPR15 | E9: Power Supply 15V for Stations, CLs, DCs (w/battery backup) | H9: =CEILING((M150)/2.6, 1) -> 24 | J9: 24 | K9: =VLOOKUP(B9,'2017'!C$4:J$257,7,FALSE) -> 933 | O9: =IF(H9*N9=0," ",H9*N9) ->  | P9: 1 | Q9: =IF(H9*P9=0," ",H9*P9) -> 24
A10: " | B10: R5KMPR36 | E10: Power Supply 36V for MSC, Console (w/battery backup) | H10: =CEILING(SUM(M11:M14)/2.4, 1)+J13 -> 12 | J10: =H10+I10 -> 12 | K10: =VLOOKUP(B10,'2017'!C$4:J$257,7,FALSE) -> 900 | O10: =IF(H10*N10=0," ",H10*N10) ->  | P10: 0.5 | Q10: =IF(H10*P10=0," ",H10*P10) -> 6
A11: " | B11: R5KMSC | E11: Main System Controller | H11: =DropDowns!I34 -> 3 | I11: 1 | J11: =H11+I11 -> 4 | K11: =VLOOKUP(B11,'2017'!C$4:J$257,7,FALSE) -> 1803 | L11: 2 | M11: =L11*J11 -> 8 | O11: =IF(H11*N11=0," ",H11*N11) ->  | P11: 6 | Q11: =IF(H11*P11=0," ",H11*P11) -> 18
A12: " | B12: 351010 | E12: Responder Network Concentrator | I12: 1 | J12: =H12+I12 -> 1 | K12: =VLOOKUP(B12,'2017'!C$4:J$257,7,FALSE) -> 12108
A13: " | B13: R5KM8PRT | E13: R5K 8-Port Switch | H13: =ROUNDUP(SUM(J11,J23)/8,0) -> 4 | I13: 4 | J13: =H13+I13 -> 8 | K13: =VLOOKUP(B13,'2017'!C$4:J$257,7,FALSE) -> 1113 | L13: 2.4 | P13: 0.5 | Q13: =IF(H13*P13=0," ",H13*P13) -> 2
A14: " | B14: 351006 | E14: Fiber Optic Adapter Module | H14: =IF(H11>=1,2,0) -> 2 | J14: =H14+I14 -> 2 | K14: =VLOOKUP(B14,'2017'!C$4:J$257,7,FALSE) -> 510 | L14: 0.75 | M14: =L14*J14 -> 1.5 | P14: 2
A15: " | B15: R5KL2KA | E15: Data Converter for K-Bus to L-Net | H15: =DropDowns!I46 -> 9 | J15: 9 | K15: =VLOOKUP(B15,'2017'!C$4:J$257,7,FALSE) -> 543 | L15: 0.13 | M15: =L15*J15 -> 1.17 | P15: 8 | Q15: =IF(H15*P15=0," ",H15*P15) -> 72
A16: " | B16: R5KMRPT | E16: Reporting Software License (1 per system) | H16: =IF('Input for Auto Config'!C7="yes", 1, 0) -> 1 | J16: 1 | K16: =VLOOKUP(B16,'2017'!C$4:J$257,7,FALSE) -> 9000 | O16: =IF(H16*N16=0," ",H16*N16) ->  | P16: 16 | Q16: =IF(H16*P16=0," ",H16*P16) -> 16
A17: " | B17: R5KMSIP | E17: SIP Telephony Software License (1 per system) | H17: =IF(AND('Input for Auto Config'!C5="",'Input for Auto Config'!C9=""),0,IF('Input for Auto Config'!C5="yes",1,IF(AND('Input for Auto Config'!C5="no",'Input for Auto Config'!C9="yes"),1,IF(AND('Input for Auto Config'!C5="",'Input for Auto Config'!C9="yes"),1, 0)))) -> 1 | J17: =IF(AND(H17=0,I144=1),1,H17+I17) -> 1 | K17: =VLOOKUP(B17,'2017'!C$4:J$257,7,FALSE) -> 5175 | P17: 6 | Q17: =IF(H17*P17=0," ",H17*P17) -> 6
A18: " | B18: 355005 | E18: Responder SIP Server | H18: =IF(H17=1, 1, 0) -> 1 | J18: 1 | K18: =VLOOKUP(B18,'2017'!C$4:J$257,7,FALSE) -> 4125 | P18: 6 | Q18: =IF(H18*P18=0," ",H18*P18) -> 6
A19: " | B19: R4KPA25 | C19: 2 | E19: Paging Amplifier | F19: =C19*J19 -> 18 | H19: =IF('Input for Auto Config'!C6="yes", 'R5K Details'!J15, 0) -> 9 | J19: =H19+I19 -> 9 | K19: =VLOOKUP(B19,'2017'!C$4:J$257,7,FALSE) -> 858 | L19: 2.5 | M19: =L19*J19 -> 22.5 | P19: 4 | Q19: =IF(H19*P19=0," ",H19*P19) -> 36
A20: " | B20: R4KMQCV2 | C20: 2 | E20: Marquee Controller | F20: =C20*J20 -> 0 | J20: =I20 -> 0 | K20: =VLOOKUP(B20,'2017'!C$4:J$257,7,FALSE) -> 507 | L20: 0.3 | M20: =L20*J20 -> 0 | P20: 2 | Q20: =IF(J20*P20=0," ",J20*P20) -> 
A21: " | B21: R4KMST | C21: 2 | E21: Marquee Speaker Station | F21: =C21*J21 -> 0 | J21: =I21 -> 0 | K21: =VLOOKUP(B21,'2017'!C$4:J$257,7,FALSE) -> 123 | L21: 0.005 | M21: =L21*J21 -> 0 | P21: 0.35
A22: " | B22: R5KMTRM | C22: 8 | E22: Termination Board | F22: =C22*J22 -> 72 | H22: =J15 -> 9 | J22: =H22+I22 -> 9 | K22: =VLOOKUP(B22,'2017'!C$4:J$257,7,FALSE) -> 183 | P22: 1 | Q22: 9
A23: " | B23: R5KCONS | E23: VoIP Nurse Console | I23: 24 | J23: =H23+I23 -> 24 | K23: =VLOOKUP(B23,'2017'!C$4:J$257,7,FALSE) -> 1836 | L23: 0.328 | M23: =L23*J23 -> 7.872 | P23: 2 | Q23: 48
A24: " | B24: R4KTMB | C24: 14 | E24: Termination Board | F24: =C24*J24 -> 0 | H24: 0 | J24: =H24+I24 -> 0 | K24: =VLOOKUP(B24,'2017'!C$4:J$257,7,FALSE) -> 155 | P24: 1
A25: " | B25: R4KANNV2 | C25: 2 | E25: Annunciate Panel (comes with a Receptacle) | F25: 0 | G25: =D25*J25 -> 0 | J25: =I25 -> 0 | K25: =VLOOKUP(B25,'2017'!C$4:J$257,7,FALSE) -> 882 | L25: 0.375 | M25: =L25*J25 -> 0 | P25: 1
A26: " | B26: R4KRECP | C26: 2 | E26: R4K Console Receptacle | F26: 0 | G26: 0 | J26: =I26 -> 0 | K26: =VLOOKUP(B26,'2017'!C$4:J$257,7,FALSE) -> 66 | O26: =IF(J26*N26=0," ",J26*N26) ->  | P26: 0.5
A27: " | B27: R4KWM22 | E27: Wall Mount Kit for Annunciate Panel | J27: =I27+H27 -> 0 | K27: =VLOOKUP(B27,'2017'!C$4:J$257,7,FALSE) -> 243 | O27: =IF(J27*N27=0," ",J27*N27) ->  | P27: 1
A28: " | B28: R4KDM22 | E28: Desk Mount Kit | J28: =I28 -> 0 | K28: =VLOOKUP(B28,'2017'!C$4:J$257,7,FALSE) -> 189 | P28: 1
A29: Stations
A30: RAULAND | B30: R5KPD2EA | C30: 4 | E30: R5K Enhnaced Dual Patient Station | F30: =C30*J30 -> 0 | H30: =SUMIF('Input for Auto Config'!C$14:C$27,B30,'Input for Auto Config'!D$14:D$27) -> 0 | J30: 0 | K30: =VLOOKUP(B30,'2017'!C$4:J$257,7,FALSE) -> 216 | L30: 0.015 | M30: =L30*J30 -> 0 | P30: 0.35 | Q30: =IF(J30*P30=0," ",J30*P30) -> 
A31: " | B31: R5KPS1EA | C31: 2 | E31: R5K Enhanced Single Station | F31: 564 | H31: =SUMIF('Input for Auto Config'!C$14:C$27,B31,'Input for Auto Config'!D$14:D$27) -> 282 | J31: 282 | K31: =VLOOKUP(B31,'2017'!C$4:J$257,7,FALSE) -> 165 | L31: 0.011 | M31: 3.102 | P31: 0.35 | Q31: 98.7
A32: " | B32: R5KPD2A | C32: 4 | E32: R5K Dual Patient Station | F32: 0 | H32: =SUMIF('Input for Auto Config'!C$14:C$27,B32,'Input for Auto Config'!D$14:D$27) -> 0 | J32: 0 | K32: =VLOOKUP(B32,'2017'!C$4:J$257,7,FALSE) -> 177 | L32: 0.01 | M32: 0 | P32: 0.35
A33: " | B33: R5KPS1A | C33: 2 | E33: R5K Single Audio Patient Station | F33: 0 | H33: =SUMIF('Input for Auto Config'!C$14:C$27,B33,'Input for Auto Config'!D$14:D$27) -> 0 | J33: 0 | K33: =VLOOKUP(B33,'2017'!C$4:J$257,7,FALSE) -> 126 | L33: 0.008 | M33: 0 | N33: =SUMIF('Input for Auto Config'!C14:C27,B33,'Input for Auto Config'!D14:D27) -> 0 | P33: 0.35
A34: " | B34: R5KPS1V | C34: 2 | E34: R5K Single Patient Visual Station | F34: 0 | H34: =SUMIF('Input for Auto Config'!C$14:C$27,B34,'Input for Auto Config'!D$14:D$27) -> 0 | J34: 0 | K34: =VLOOKUP(B34,'2017'!C$4:J$257,7,FALSE) -> 105 | L34: 0.003 | M34: 0 | P34: 0.35
A35: " | B35: R5KPS1LCA | C35: 4 | E35: R5K Audio Single Patient Station with Lighting Control | F35: 0 | H35: =SUMIF('Input for Auto Config'!C$14:C$27,B35,'Input for Auto Config'!D$14:D$27) -> 0 | J35: 0 | K35: =VLOOKUP(B35,'2017'!C$4:J$257,7,FALSE) -> 180 | L35: 0.031 | M35: 0 | P35: 0.35
A36: " | B36: R5KSSTF | C36: 2 | E36: R5K Staff Station | F36: 0 | H36: =SUMIF('Input for Auto Config'!C$14:C$27,B36,'Input for Auto Config'!D$14:D$27) -> 0 | J36: 0 | K36: =VLOOKUP(B36,'2017'!C$4:J$257,7,FALSE) -> 111 | L36: 0.016 | M36: 0 | P36: 0.35
A37: " | B37: R5KSDTY | C37: 4 | E37: R5K Duty Station | F37: 12 | H37: =SUMIF('Input for Auto Config'!C$14:C$27,B37,'Input for Auto Config'!D$14:D$27) -> 3 | J37: 3 | K37: =VLOOKUP(B37,'2017'!C$4:J$257,7,FALSE) -> 132 | L37: 0.027 | M37: 0.081 | P37: 0.35 | Q37: 1.05
A38: " | B38: R5KPB4 | C38: 4 | E38: Responder 5K 4-button Workflow and Registration Station | F38: 0 | H38: =SUMIF('Input for Auto Config'!C$14:C$27,B38,'Input for Auto Config'!D$14:D$27) -> 0 | J38: 0 | K38: =VLOOKUP(B38,'2017'!C$4:J$257,7,FALSE) -> 123 | L38: 0.011 | M38: 0 | O38: =IF(J38*N38=0," ",J38*N38) ->  | P38: 0.35
A39: " | B39: R5KPC11WP | C39: 2 | E39: Waterproof Pullcord Station | F39: 0 | H39: =SUMIF('Input for Auto Config'!C$14:C$27,B39,'Input for Auto Config'!D$14:D$27) -> 0 | J39: 0 | K39: =VLOOKUP(B39,'2017'!C$4:J$257,7,FALSE) ->  | L39: 0.015 | O39: =IF(J39*N39=0," ",J39*N39) ->  | P39: 0.35
A40: " | B40: R5KPC11WPS | C40: 2 | E40: Waterproof Pullcord Station - Spanish | F40: 0 | H40: =SUMIF('Input for Auto Config'!C$14:C$27,B40,'Input for Auto Config'!D$14:D$27) -> 0 | J40: 0 | K40: =VLOOKUP(B40,'2017'!C$4:J$257,7,FALSE) ->  | L40: 0.015
A41: " | B41: R5KPC11WPF | C41: 2 | E41: Waterproof Pullcord Station - French | F41: 0 | H41: =SUMIF('Input for Auto Config'!C$14:C$27,B41,'Input for Auto Config'!D$14:D$27) -> 0 | J41: 0 | K41: =VLOOKUP(B41,'2017'!C$4:J$257,7,FALSE) ->  | L41: 0.015
A42: " | B42: R4K15V | D42: 4 | E42: SLIM 1/4" Jack / Button St | F42: 0 | G42: =D42*J42 -> 0 | H42: =SUMIF('Input for Auto Config'!C$14:C$27,B42,'Input for Auto Config'!D$14:D$27) -> 0 | J42: 0 | K42: =VLOOKUP(B42,'2017'!C$4:J$257,7,FALSE) -> 123 | L42: 0.007 | M42: =L42*J42 -> 0 | O42: =IF(J42*N42=0," ",J42*N42) ->  | P42: 0.35
A43: " | B43: R4K17V | D43: 2 | E43: SLIM Enh Single Call St | F43: 0 | G43: 0 | H43: =SUMIF('Input for Auto Config'!C$14:C$27,B43,'Input for Auto Config'!D$14:D$27) -> 0 | J43: 0 | K43: =VLOOKUP(B43,'2017'!C$4:J$257,7,FALSE) -> 186 | L43: 0.025 | M43: 0 | P43: 0.35
A44: " | B44: R4K11V | D44: 2 | E44: Single Patient Station - Visual | H44: =SUMIF('Input for Auto Config'!C$14:C$27,B44,'Input for Auto Config'!D$14:D$27) -> 0 | K44: =VLOOKUP(B44,'2017'!C$4:J$257,7,FALSE) -> 95 | L44: 0.002 | M44: 0 | P44: 0.35
A45: " | B45: R4K12A | C45: 2 | E45: Single Patient Station - Audio | H45: =SUMIF('Input for Auto Config'!C$14:C$27,B45,'Input for Auto Config'!D$14:D$27) -> 0 | K45: =VLOOKUP(B45,'2017'!C$4:J$257,7,FALSE) -> 103 | L45: 0.005 | M45: 0 | P45: 0.35
A46: " | B46: R4K12AHZ | C46: 2 | E46: Horizontal Single Patient Station - Audio | H46: =SUMIF('Input for Auto Config'!C$14:C$27,B46,'Input for Auto Config'!D$14:D$27) -> 0 | K46: =VLOOKUP(B46,'2017'!C$4:J$257,7,FALSE) -> 108 | L46: 0.005 | M46: 0 | P46: 0.35
A47: " | B47: R4K13VA | C47: 2 | E47: Enhanced Single Patient Station - Audio | H47: =SUMIF('Input for Auto Config'!C$14:C$27,B47,'Input for Auto Config'!D$14:D$27) -> 0 | K47: =VLOOKUP(B47,'2017'!C$4:J$257,7,FALSE) -> 203 | L47: 0.025 | M47: 0 | P47: 0.35
A48: " | B48: R4K13VAHZ | C48: 2 | D48: 2 | E48: Horizontal Enh Single Patient Station - Audio | H48: =SUMIF('Input for Auto Config'!C$14:C$27,B48,'Input for Auto Config'!D$14:D$27) -> 0 | K48: =VLOOKUP(B48,'2017'!C$4:J$257,7,FALSE) -> 205 | L48: 0.025 | M48: 0 | P48: 0.35
A49: " | B49: R4K14SA | C49: 2 | D49: 2 | E49: Single Patient w/ Staff Emer | H49: =SUMIF('Input for Auto Config'!C$14:C$27,B49,'Input for Auto Config'!D$14:D$27) -> 0 | K49: =VLOOKUP(B49,'2017'!C$4:J$257,7,FALSE) -> 130 | L49: 0.018 | M49: 0 | P49: 0.35
A50: " | B50: R4K16LV | D50: 2 | E50: Enhanced Single Patient Station - Visual | H50: =SUMIF('Input for Auto Config'!C$14:C$27,B50,'Input for Auto Config'!D$14:D$27) -> 0 | K50: =VLOOKUP(B50,'2017'!C$4:J$257,7,FALSE) -> 163 | L50: 0.015 | M50: 0 | P50: 0.35
A51: " | B51: R4K21V | C51: 4 | E51: Dual Patient Station - Visual | H51: =SUMIF('Input for Auto Config'!C$14:C$27,B51,'Input for Auto Config'!D$14:D$27) -> 0 | K51: =VLOOKUP(B51,'2017'!C$4:J$257,7,FALSE) -> 125 | L51: 0.004 | M51: 0 | P51: 0.35
A52: " | B52: R4K22A | C52: 2 | D52: 2 | E52: Dual Patient Station - Audio | H52: =SUMIF('Input for Auto Config'!C$14:C$27,B52,'Input for Auto Config'!D$14:D$27) -> 0 | K52: =VLOOKUP(B52,'2017'!C$4:J$257,7,FALSE) -> 133 | L52: 0.007 | M52: 0 | P52: 0.35
A53: " | B53: R4K23VA | C53: 4 | E53: Enhanced Dual Patient Station - Audio | H53: =SUMIF('Input for Auto Config'!C$14:C$27,B53,'Input for Auto Config'!D$14:D$27) -> 0 | K53: =VLOOKUP(B53,'2017'!C$4:J$257,7,FALSE) -> 253 | L53: 0.03 | M53: 0 | P53: 0.35
A54: " | B54: HSS400 | C54: 2 | E54: High Security Audio Bed Station | F54: 0 | G54: =D54*J54 -> 0 | H54: =SUMIF('Input for Auto Config'!C$14:C$27,B54,'Input for Auto Config'!D$14:D$27) -> 0 | J54: 0 | K54: =VLOOKUP(B54,'2017'!C$4:J$257,7,FALSE) -> 774 | L54: 0.01 | M54: 0 | P54: 0.35
A55: " | B55: HSS401 | C55: 2 | E55: High Security Staff Station | F55: 0 | G55: 0 | H55: =SUMIF('Input for Auto Config'!C$14:C$27,B55,'Input for Auto Config'!D$14:D$27) -> 0 | J55: 0 | K55: =VLOOKUP(B55,'2017'!C$4:J$257,7,FALSE) -> 774 | L55: 0.008 | M55: 0 | P55: 0.35
A56: " | B56: HSS433 | D56: 2 | E56: High Security Push Button Station | F56: 0 | G56: 0 | H56: =SUMIF('Input for Auto Config'!C$14:C$27,B56,'Input for Auto Config'!D$14:D$27) -> 0 | J56: 0 | K56: =VLOOKUP(B56,'2017'!C$4:J$257,7,FALSE) -> 774 | L56: 0.015 | M56: 0 | P56: 0.35 | Q56: =IF(J56*P56=0," ",J56*P56) -> 
A57: " | B57: R4KSS | C57: 2 | E57: Staff Station | H57: =SUMIF('Input for Auto Config'!C$14:C$27,B57,'Input for Auto Config'!D$14:D$27) -> 0 | K57: =VLOOKUP(B57,'2017'!C$4:J$257,7,FALSE) -> 103 | L57: 0.005 | M57: 0 | P57: 0.35
A58: " | B58: R4KDY | C58: 2 | D58: 2 | E58: Duty Station | H58: =SUMIF('Input for Auto Config'!C$14:C$27,B58,'Input for Auto Config'!D$14:D$27) -> 0 | K58: =VLOOKUP(B58,'2017'!C$4:J$257,7,FALSE) -> 143 | L58: 0.012 | M58: 0 | P58: 0.35
A59: " | B59: R4K2JACK | D59: 4 | E59: SLIM Dual 1/4" Jack St | F59: 0 | G59: 0 | H59: =SUMIF('Input for Auto Config'!C$14:C$27,B59,'Input for Auto Config'!D$14:D$27) -> 0 | J59: 0 | K59: =VLOOKUP(B59,'2017'!C$4:J$257,7,FALSE) -> 135 | L59: 0.007 | M59: 0 | P59: 0.35
A60: " | B60: R4KCB13 | D60: 2 | E60: SLIM Code Button St | F60: 0 | G60: 0 | H60: =SUMIF('Input for Auto Config'!C$14:C$27,B60,'Input for Auto Config'!D$14:D$27) -> 0 | J60: 0 | K60: =VLOOKUP(B60,'2017'!C$4:J$257,7,FALSE) -> 102 | L60: 0.017 | M60: 0 | P60: 0.35
A61: " | B61: R4KDTY2 | C61: 2 | D61: 2 | E61: SLIM Duty St w/ Speaker | K61: =VLOOKUP(B61,'2017'!C$4:J$257,7,FALSE) -> 143 | L61: 0.012 | M61: 0 | P61: 0.35
A62: " | B62: R4KPB12 | D62: 2 | E62: SLIM Single Button St | F62: 0 | G62: 356 | H62: =SUMIF('Input for Auto Config'!C$14:C$27,B62,'Input for Auto Config'!D$14:D$27) -> 178 | J62: 178 | K62: =VLOOKUP(B62,'2017'!C$4:J$257,7,FALSE) -> 90 | L62: 0.004 | M62: 0.712 | P62: 0.35 | Q62: 62.3
A63: " | B63: R4KPB23 | D63: 2 | E63: SLIM Dual Button w/ Code St | F63: 0 | G63: 742 | H63: =SUMIF('Input for Auto Config'!C$14:C$27,B63,'Input for Auto Config'!D$14:D$27) -> 371 | J63: 371 | K63: =VLOOKUP(B63,'2017'!C$4:J$257,7,FALSE) -> 99 | L63: 0.017 | M63: 6.307 | P63: 0.5 | Q63: 185.5
A64: " | B64: R4KPC11 | D64: 2 | E64: SLIM Pull Cord St | F64: 0 | G64: 156 | H64: =SUMIF('Input for Auto Config'!C$14:C$27,B64,'Input for Auto Config'!D$14:D$27) -> 78 | J64: 78 | K64: =VLOOKUP(B64,'2017'!C$4:J$257,7,FALSE) -> 93 | L64: 0.002 | M64: 0.156 | P64: 0.35 | Q64: 27.3
A65: " | B65: R4KSAR | D65: 2 | E65: SLIM Dual Button St | F65: 0 | G65: 0 | H65: =SUMIF('Input for Auto Config'!C$14:C$27,B65,'Input for Auto Config'!D$14:D$27) -> 0 | J65: 0 | K65: =VLOOKUP(B65,'2017'!C$4:J$257,7,FALSE) -> 102 | L65: 0.007 | M65: 0 | P65: 0.5
A66: " | B66: R4KSPK | C66: 2 | E66: SLIM Speaker Module | F66: 0 | G66: 0 | H66: =SUMIF('Input for Auto Config'!C$14:C$27,B66,'Input for Auto Config'!D$14:D$27) -> 0 | J66: 0 | K66: =VLOOKUP(B66,'2017'!C$4:J$257,7,FALSE) -> 45 | P66: 0.35
A67: " | B67: R4KESR | D67: 2 | E67: Emergency/Staff Registration Station | H67: =SUMIF('Input for Auto Config'!C$14:C$27,B67,'Input for Auto Config'!D$14:D$27) -> 0 | K67: =VLOOKUP(B67,'2017'!C$4:J$257,7,FALSE) -> 108 | L67: 0.007 | M67: =L67*J67 -> 0 | P67: 0.35
A68: " | B68: R4KCNCL | D68: 2 | E68: Cancel Station | H68: =SUMIF('Input for Auto Config'!C$14:C$27,B68,'Input for Auto Config'!D$14:D$27) -> 0 | K68: =VLOOKUP(B68,'2017'!C$4:J$257,7,FALSE) -> 83 | P68: 0.35
A69: " | B69: R4KCB12 | D69: 2 | E69: Code Blue Station | H69: =SUMIF('Input for Auto Config'!C$14:C$27,B69,'Input for Auto Config'!D$14:D$27) -> 0 | K69: =VLOOKUP(B69,'2017'!C$4:J$257,7,FALSE) -> 98 | L69: 0.017 | M69: =L69*J69 -> 0 | P69: 0.35
A70: " | B70: R4KPB11 | D70: 2 | E70: Single Push Button -Push for Help | H70: =SUMIF('Input for Auto Config'!C$14:C$27,B70,'Input for Auto Config'!D$14:D$27) -> 0 | K70: =VLOOKUP(B70,'2017'!C$4:J$257,7,FALSE) -> 90 | L70: 0.004 | M70: 0 | P70: 0.35
A71: " | B71: R4KPC10 | D71: 2 | E71: Pull Cord Station | H71: =SUMIF('Input for Auto Config'!C$14:C$27,B71,'Input for Auto Config'!D$14:D$27) -> 0 | K71: =VLOOKUP(B71,'2017'!C$4:J$257,7,FALSE) -> 85 | L71: 0.002 | M71: 0 | P71: 0.35
A72: " | B72: R4KPB22 | D72: 2 | E72: Dual Push Button Station | H72: =SUMIF('Input for Auto Config'!C$14:C$27,B72,'Input for Auto Config'!D$14:D$27) -> 0 | K72: =VLOOKUP(B72,'2017'!C$4:J$257,7,FALSE) -> 113 | L72: 0.017 | M72: 0 | P72: 0.5
A73: " | B73: R4KPB44 | D73: 4 | E73: Four Button Status Station | H73: =SUMIF('Input for Auto Config'!C$14:C$27,B73,'Input for Auto Config'!D$14:D$27) -> 0 | K73: =VLOOKUP(B73,'2017'!C$4:J$257,7,FALSE) -> 128 | L73: 0.011 | M73: 0 | P73: 0.5
A74: " | B74: R4KSR1 | D74: 2 | E74: Staff Register Station | H74: =SUMIF('Input for Auto Config'!C$14:C$27,B74,'Input for Auto Config'!D$14:D$27) -> 0 | K74: =VLOOKUP(B74,'2017'!C$4:J$257,7,FALSE) -> 80 | L74: 0.002 | M74: 0 | P74: 0.35
A75: " | B75: R4KFB1 | C75: 1 | D75: 1 | E75: Feature Bed Interface | F75: =C75*J75 -> 0 | G75: =D75*J75 -> 0 | H75: =SUMIF('Input for Auto Config'!G$14:G$27,'R5K Details'!B75,'Input for Auto Config'!H$14:H$27) -> 0 | J75: =H75+I75 -> 0 | K75: =VLOOKUP(B75,'2017'!C$4:J$257,7,FALSE) -> 132 | L75: 0.075 | M75: 0 | P75: 0.05
A76: " | B76: R4KSLC1 | D76: 2 | E76: Single Light Control Module | F76: 0 | G76: =D76*J76 -> 0 | H76: =SUMIF('Input for Auto Config'!G$14:G$27,'R5K Details'!B76,'Input for Auto Config'!H$14:H$27) -> 0 | J76: =H76+I76 -> 0 | K76: =VLOOKUP(B76,'2017'!C$4:J$257,7,FALSE) -> 81 | L76: 0.013 | M76: 0 | P76: 0.05
A77: " | B77: R4KDLC2 | D77: 3 | E77: Dual Light Control Module | F77: 0 | G77: =D77*J77 -> 0 | H77: =SUMIF('Input for Auto Config'!G$14:G$27,'R5K Details'!B77,'Input for Auto Config'!H$14:H$27) -> 0 | J77: =H77+I77 -> 0 | K77: =VLOOKUP(B77,'2017'!C$4:J$257,7,FALSE) -> 135 | L77: 0.023 | M77: 0 | P77: 0.05
A78: " | B78: R4KTVA | E78: TV Adapter pigtail kit (Set of 10) | H78: =SUMIF('Input for Auto Config'!G$14:G$27,'R5K Details'!B78,'Input for Auto Config'!H$14:H$27) -> 0 | J78: =ROUNDUP(I78+H78,0) -> 0 | K78: =VLOOKUP(B78,'2017'!C$4:J$257,7,FALSE) -> 42 | P78: 0.25
A79: " | B79: R4KTVR1 | C79: 2 | E79: Digital TV Isolation Module | F79: 0 | G79: =D79*J79 -> 0 | H79: =SUMIF('Input for Auto Config'!G$14:G$27,'R5K Details'!B79,'Input for Auto Config'!H$14:H$27) -> 0 | J79: =H79+I79 -> 0 | K79: =VLOOKUP(B79,'2017'!C$4:J$257,7,FALSE) -> 54 | L79: 0.015 | M79: =L79*J79 -> 0 | P79: 0.25
A80: " | B80: R4KFAM | C80: 1 | D80: 1 | E80: Fire/Auxiliary Module | F80: 0 | G80: =D80*J80 -> 0 | J80: =I80 -> 0 | K80: =VLOOKUP(B80,'2017'!C$4:J$257,7,FALSE) -> 117 | L80: 0.03 | M80: =L80*J80 -> 0 | P80: 0.25
A81: " | B81: R4KCAL | C81: 1 | D81: 1 | E81: Call Assurance Light | F81: 0 | G81: =D81*J81 -> 0 | H81: =SUMIF('Input for Auto Config'!G$14:G$27,'R5K Details'!B81,'Input for Auto Config'!H$14:H$27) -> 0 | J81: =I81+H81 -> 0 | K81: =VLOOKUP(B81,'2017'!C$4:J$257,7,FALSE) -> 81 | L81: 0.005 | M81: =L81*J81 -> 0 | P81: 0.35
A82: Corridor Devices
A83: RAULAND | B83: R5KCL506 | C83: 2 | E83: 5-Bulb, Visual Corridor Light | F83: =C83*J83 -> 0 | H83: =SUMIF('Input for Auto Config'!C$14:C$27,B83,'Input for Auto Config'!D$14:D$27) -> 0 | J83: =H83+I83 -> 0 | K83: =VLOOKUP(B83,'2017'!C$4:J$257,7,FALSE) -> 198 | L83: 0.036 | M83: =L83*J83 -> 0 | O83: =IF(J83*N83=0," ",J83*N83) ->  | P83: 0.75 | Q83: =IF(J83*P83=0," ",J83*P83) -> 
A84: " | B84: R5KCL516 | C84: 2 | E84: 5-Bulb, 1-Point Audio Corridor Light | F84: 0 | H84: =SUMIF('Input for Auto Config'!C$14:C$27,B84,'Input for Auto Config'!D$14:D$27) -> 0 | J84: =H84+I84 -> 0 | K84: =VLOOKUP(B84,'2017'!C$4:J$257,7,FALSE) -> 237 | L84: 0.038 | M84: 0 | P84: 0.75
A85: " | B85: R5KCL546 | C85: 2 | E85: 5-Bulb, 4-Point Audio Corridor Light | F85: 0 | H85: =SUMIF('Input for Auto Config'!C$14:C$27,B85,'Input for Auto Config'!D$14:D$27) -> 0 | J85: 0 | K85: =VLOOKUP(B85,'2017'!C$4:J$257,7,FALSE) -> 270 | L85: 0.058 | M85: 0 | P85: 0.75
A86: " | B86: CLA246 | C86: 2 | E86: R4K 4 Bulb, 1-Point Audio Corridor Light | F86: 284 | H86: =SUMIF('Input for Auto Config'!C$14:C$27,B86,'Input for Auto Config'!D$14:D$27) -> 142 | J86: 142 | K86: =VLOOKUP(B86,'2017'!C$4:J$257,7,FALSE) -> 408 | L86: 0.138 | M86: 19.596
A87: " | B87: CLAR46 | C87: 12 | E87: R4K 4 Point Audio Relay Kit for CLA246 | F87: 0 | H87: =SUMIF('Input for Auto Config'!C$14:C$27,B87,'Input for Auto Config'!D$14:D$27) -> 0 | J87: 0 | K87: =VLOOKUP(B87,'2017'!C$4:J$257,7,FALSE) -> 128 | L87: 0.32 | M87: 0
A88: " | B88: R5KDC06 | C88: 2 | E88: 6-Point Visual Domeless Controller | F88: 0 | H88: =SUMIF('Input for Auto Config'!C$14:C$27,B88,'Input for Auto Config'!D$14:D$27) -> 0 | J88: 0 | K88: =VLOOKUP(B88,'2017'!C$4:J$257,7,FALSE) -> 264 | L88: 0.016 | M88: 0 | P88: 1
A89: " | B89: R5KDC016 | C89: 2 | E89: 16-Point Visual Domeless Controller | F89: 0 | H89: =SUMIF('Input for Auto Config'!C$14:C$27,B89,'Input for Auto Config'!D$14:D$27) -> 0 | J89: 0 | K89: =VLOOKUP(B89,'2017'!C$4:J$257,7,FALSE) -> 369 | L89: 0.017 | M89: 0 | P89: 0.75
A90: " | B90: R5KDC46 | C90: 2 | E90: 6-Point, 4-Point Audio Domeless Controller | F90: 436 | H90: =SUMIF('Input for Auto Config'!C$14:C$27,B90,'Input for Auto Config'!D$14:D$27) -> 218 | J90: 218 | K90: =VLOOKUP(B90,'2017'!C$4:J$257,7,FALSE) -> 315 | L90: 0.038 | M90: 8.284 | P90: 0.75 | Q90: 163.5
A91: " | B91: R5KDC16D | C91: 2 | E91: 6-Point, 1 Point Audio Duty Domeless Controller | F91: 6 | H91: =IF(SUMIF('Input for Auto Config'!C$14:C$27,B91,'Input for Auto Config'!D$14:D$27)=0,J37,SUMIF('Input for Auto Config'!C$14:C$27,B91,'Input for Auto Config'!D$14:D$27)) -> 3 | J91: 3 | K91: =VLOOKUP(B91,'2017'!C$4:J$257,7,FALSE) -> 330 | L91: 0.058 | M91: 0.174 | P91: 0.75 | Q91: 2.25
A92: " | B92: R5KDCRC4 | E92: Relay Output Control | F92: 0 | H92: =SUMIF('Input for Auto Config'!C$14:C$27,B92,'Input for Auto Config'!D$14:D$27) -> 0 | J92: 0 | K92: =VLOOKUP(B92,'2017'!C$4:J$257,7,FALSE) -> 120 | L92: 0.032 | M92: 0 | P92: 0.25
A93: " | B93: R5KDCRCS4 | E93: Solid State Relay Output Control | F93: 0 | H93: =SUMIF('Input for Auto Config'!C$14:C$27,B93,'Input for Auto Config'!D$14:D$27) -> 0 | J93: 0 | K93: =VLOOKUP(B93,'2017'!C$4:J$257,7,FALSE) -> 144 | L93: 0.021 | M93: 0 | P93: 0.25
A94: " | B94: CLV122 | C94: 2 | E94: Visual 2-Bulb Corridor Light | H94: =SUMIF('Input for Auto Config'!C$14:C$27,B94,'Input for Auto Config'!D$14:D$27) -> 0 | K94: =VLOOKUP(B94,'2017'!C$4:J$257,7,FALSE) -> 235 | L94: 0.022 | M94: 0 | P94: 0.75
A95: " | B95: CLV144 | C95: 2 | E95: Visual 4-Bulb Corridor Light | H95: =SUMIF('Input for Auto Config'!C$14:C$27,B95,'Input for Auto Config'!D$14:D$27) -> 0 | K95: =VLOOKUP(B95,'2017'!C$4:J$257,7,FALSE) -> 270 | L95: 0.032 | M95: 0 | P95: 0.75
A96: " | B96: DCV100 | C96: 2 | E96: Visual Domeless Controller - 6 pt | H96: =SUMIF('Input for Auto Config'!C$14:C$27,B96,'Input for Auto Config'!D$14:D$27) -> 0 | K96: =VLOOKUP(B96,'2017'!C$4:J$257,7,FALSE) -> 265 | L96: 0.012 | M96: 0 | P96: 0.75
A97: " | B97: DCV116 | C97: 2 | E97: Visual Domeless Controller - 16 pt | H97: =SUMIF('Input for Auto Config'!C$14:C$27,B97,'Input for Auto Config'!D$14:D$27) -> 0 | K97: =VLOOKUP(B97,'2017'!C$4:J$257,7,FALSE) -> 385 | L97: 0.012 | M97: 0 | P97: 1
A98: " | B98: CLA222 | C98: 2 | E98: Audio 2-Bulb Corridor Light | H98: =SUMIF('Input for Auto Config'!C$14:C$27,B98,'Input for Auto Config'!D$14:D$27) -> 0 | K98: =VLOOKUP(B98,'2017'!C$4:J$257,7,FALSE) -> 325 | L98: 0.068 | M98: 0 | P98: 0.75
A99: " | B99: CLA244 | C99: 2 | E99: Audio 4-Bulb Corridor Light | H99: =SUMIF('Input for Auto Config'!C$14:C$27,B99,'Input for Auto Config'!D$14:D$27) -> 0 | K99: =VLOOKUP(B99,'2017'!C$4:J$257,7,FALSE) ->  | L99: 0.078 | M99: 0 | P99: 0.75
A100: " | B100: CLA214D | C100: 2 | E100: Audio 4-Bulb Duty Corridor Light | H100: =SUMIF('Input for Auto Config'!C$14:C$27,B100,'Input for Auto Config'!D$14:D$27) -> 0 | K100: =VLOOKUP(B100,'2017'!C$4:J$257,7,FALSE) -> 455 | L100: 0.098 | M100: 0 | P100: 0.75
A101: " | B101: DCA200 | C101: 2 | E101: Audio Domeless Controller - 6 pt | H101: =SUMIF('Input for Auto Config'!C$14:C$27,B101,'Input for Auto Config'!D$14:D$27) -> 0 | K101: =VLOOKUP(B101,'2017'!C$4:J$257,7,FALSE) -> 343 | L101: 0.038 | M101: 0 | P101: 0.75
A102: " | B102: DCA214D | C102: 2 | E102: Audio Duty Domeless Controller - 6 pt | H102: =SUMIF('Input for Auto Config'!C$14:C$27,B102,'Input for Auto Config'!D$14:D$27) -> 0 | K102: =VLOOKUP(B102,'2017'!C$4:J$257,7,FALSE) -> 383 | L102: 0.058 | M102: 0 | P102: 0.75
A103: " | B103: DCA216 | C103: 2 | E103: Audio Domeless Controller - 16 pt | H103: =SUMIF('Input for Auto Config'!C$14:C$27,B103,'Input for Auto Config'!D$14:D$27) -> 0 | K103: =VLOOKUP(B103,'2017'!C$4:J$257,7,FALSE) -> 430 | L103: 0.038 | M103: 0 | P103: 1
A104: " | B104: CLAR4 | E104: Four Station Audio Relay Kit | H104: =SUMIF('Input for Auto Config'!C$14:C$27,B104,'Input for Auto Config'!D$14:D$27) -> 0 | K104: =VLOOKUP(B104,'2017'!C$4:J$257,7,FALSE) ->  | L104: 0.032 | M104: 0 | P104: 0.25
A105: " | B105: R4KOUT4R | D105: 2 | E105: Visual Relay Output Control | H105: =SUMIF('Input for Auto Config'!C$14:C$27,B105,'Input for Auto Config'!D$14:D$27) -> 0 | K105: =VLOOKUP(B105,'2017'!C$4:J$257,7,FALSE) -> 103 | L105: 0.032 | M105: 0 | P105: 0.25
A106: " | B106: R4KOUT4S | D106: 2 | E106: Audio Solid State Relay Output Control | H106: =SUMIF('Input for Auto Config'!C$14:C$27,B106,'Input for Auto Config'!D$14:D$27) -> 0 | K106: =VLOOKUP(B106,'2017'!C$4:J$257,7,FALSE) -> 125 | L106: 0.021 | M106: 0 | P106: 0.25
A107: Accessories
A108: RAULAND | B108: 350018 | E108: 8pn Inlinecon Cat-5 Cat-6(100) | F108: =SUM(F19:F26,F30:F66,G42:G66,G25:G26,F76:F81,G76:G81,F83:F93,F115:F116,G115:G116,) -> 2646 | H108: =ROUNDUP(F108/100,0) -> 27 | J108: =I108+H108 -> 27 | K108: =VLOOKUP(B108,'2017'!C$4:J$257,7,FALSE) -> 338 | O108: =IF(J108*N108=0," ",J108*N108) ->  | Q108: =IF(J108*P108=0," ",J108*P108) -> 
A109: " | B109: R4KCONN6 | E109: 6-Pin connectors (Bag of 100) | G109: =SUM(G75) -> 0 | H109: =CEILING(G109/100, 1) -> 0 | J109: =I109+H109 -> 0 | K109: =VLOOKUP(B109,'2017'!C$4:J$257,7,FALSE) -> 486 | O109: =IF(J109*N109=0," ",J109*N109) ->  | Q109: =IF(J109*P109=0," ",J109*P109) -> 
A110: " | B110: R4KCONN8 | E110: 8-Pin connectors (Bag of 100) | F110: =SUM(F75) -> 0 | H110: =CEILING(F110/100, 1) -> 0 | J110: =I110+H110 -> 0 | K110: =VLOOKUP(B110,'2017'!C$4:J$257,7,FALSE) -> 490 | O110: =IF(J110*N110=0," ",J110*N110) ->  | Q110: =IF(J110*P110=0," ",J110*P110) -> 
A111: " | B111: 350006 | E111: Crimping tool Adapter | J111: =I111+H111 -> 0 | K111: =VLOOKUP(B111,'2017'!C$4:J$257,7,FALSE) -> 83
A112: " | B112: 350007 | E112: Station Removal Tool | J112: =I112+H112 -> 0 | K112: =VLOOKUP(B112,'2017'!C$4:J$257,7,FALSE) -> 40
A113: " | B113: R4KCRIMP | E113: Responder 4000 Crimp Tool | J113: =I113 -> 0 | K113: =VLOOKUP(B113,'2017'!C$4:J$257,7,FALSE) -> 60 | O113: =IF(J113*N113=0," ",J113*N113) ->  | Q113: =IF(J113*P113=0," ",J113*P113) -> 
A114: " | B114: R4KSTAC | E114: R4K Test Adapter Cables | J114: =I114 -> 0 | K114: =VLOOKUP(B114,'2017'!C$4:J$257,7,FALSE) -> 129
A115: " | B115: R4KKBS | C115: 3 | E115: K-Bus Splitter | F115: =C115*J115 -> 0 | G115: =D115*J115 -> 0 | J115: =I115 -> 0 | K115: =VLOOKUP(B115,'2017'!C$4:J$257,7,FALSE) -> 42 | P115: 0.25
A116: " | B116: R4KKBSP | C116: 3 | E116: K-Bus Splitter w/ Power | F116: =C116*J116 -> 0 | G116: =D116*J116 -> 0 | J116: =I116 -> 0 | K116: =VLOOKUP(B116,'2017'!C$4:J$257,7,FALSE) -> 48 | P116: 0.25
A117: " | B117: R5KPADP | E117: R5K Adapter Plates (10) | J117: =H117+I117 -> 0 | K117: =VLOOKUP(B117,'2017'!C$4:J$257,7,FALSE) -> 111 | P117: 0.35
A118: " | B118: 350026 | E118: R5 & R4K Single Gang Adapter Plates | J118: 0 | K118: =VLOOKUP(B118,'2017'!C$4:J$257,7,FALSE) -> 53 | P118: 0.1
A119: " | B119: 350008 | E119: Clear Station Cover (SLIM 1 & 2 Button Stations) | J119: =I119+H119 -> 0 | K119: =VLOOKUP(B119,'2017'!C$4:J$257,7,FALSE) -> 63 | P119: 0.1
A120: " | B120: R4KSTR | E120: Strain Relief Kit | J120: =I120+H120 -> 0 | K120: =VLOOKUP(B120,'2017'!C$4:J$257,7,FALSE) -> 55 | P120: 0.05
A121: " | B121: R4KHVK | E121: R4K 250v Kit For NC2828 | J121: =I121 -> 0 | K121: =VLOOKUP(B121,'2017'!C$4:J$257,7,FALSE) -> 290 | O121: =IF(J121*N121=0," ",J121*N121) ->  | P121: 2
A122: " | B122: CLS103 | E122: 3 Lamp High Security Dome Lite | J122: =I122 -> 0 | K122: =VLOOKUP(B122,'2017'!C$4:J$257,7,FALSE) -> 276 | L122: 0.2 | M122: =L122*J122 -> 0 | O122: =IF(J122*N122=0," ",J122*N122) ->  | P122: 2
A123: Pillow Speakers/Call Cords/Other
A124: RAULAND | B124: NCPSDSL2 | E124: Digital Pillow Speaker, 2 Lts | H124: =SUMIF('Input for Auto Config'!G$14:G$27,'R5K Details'!B124,'Input for Auto Config'!H$14:H$27) -> 0 | J124: =H124+I124 -> 0 | K124: =VLOOKUP(B124,'2017'!C$4:J$257,7,FALSE) -> 330 | M124: =IF(J124*L124=0," ",J124*L124) ->  | O124: =IF(J124*N124=0," ",J124*N124) ->  | P124: 0.1 | Q124: =IF(J124*P124=0," ",J124*P124) -> 
A125: " | B125: NCPSDSTV | E125: Digital Pillow Speaker, TV | H125: =SUMIF('Input for Auto Config'!G$14:G$27,'R5K Details'!B125,'Input for Auto Config'!H$14:H$27) -> 0 | J125: 0 | K125: =VLOOKUP(B125,'2017'!C$4:J$257,7,FALSE) -> 330 | P125: 0.1
A126: " | B126: NCPSKPL2 | E126: Direct Access Digital PS, 2 Lt | H126: =SUMIF('Input for Auto Config'!G$14:G$27,'R5K Details'!B126,'Input for Auto Config'!H$14:H$27) -> 0 | J126: 0 | K126: =VLOOKUP(B126,'2017'!C$4:J$257,7,FALSE) -> 345 | P126: 0.1
A127: " | B127: NCPSKPTV | E127: Direct Access Digital PS, TV | H127: =SUMIF('Input for Auto Config'!G$14:G$27,'R5K Details'!B127,'Input for Auto Config'!H$14:H$27) -> 0 | J127: =H127+I127 -> 0 | K127: =VLOOKUP(B127,'2017'!C$4:J$257,7,FALSE) -> 345 | P127: 0.1
A128: " | B128: NCSAV | E128: DIN Cord Saver | H128: =SUMIF('Input for Auto Config'!G$14:G$27,'R5K Details'!B128,'Input for Auto Config'!H$14:H$27) -> 0 | J128: 0 | K128: =VLOOKUP(B128,'2017'!C$4:J$257,7,FALSE) -> 43 | M128: =IF(J128*L128=0," ",J128*L128) ->  | P128: 0.1 | Q128: =IF(J128*P128=0," ",J128*P128) -> 
A129: " | B129: CCDIN3 | E129: Handheld Pendent - 2 Lights (8-pin DIN) | H129: =SUMIF('Input for Auto Config'!G$14:G$27,'R5K Details'!B129,'Input for Auto Config'!H$14:H$27) -> 0 | J129: =H129+I129 -> 0 | K129: =VLOOKUP(B129,'2017'!C$4:J$257,7,FALSE) -> 118 | M129: =IF(J129*L129=0," ",J129*L129) ->  | P129: 0.1 | Q129: =IF(J129*P129=0," ",J129*P129) -> 
A130: " | B130: CCDIN | E130: Call Cord - Single w/ Clip (10 ft.) | H130: =SUMIF('Input for Auto Config'!G$14:G$27,'R5K Details'!B130,'Input for Auto Config'!H$14:H$27) -> 0 | I130: 282 | J130: 282 | K130: =VLOOKUP(B130,'2017'!C$4:J$257,7,FALSE) -> 55 | M130: =IF(J130*L130=0," ",J130*L130) ->  | P130: 0.1 | Q130: =IF(J130*P130=0," ",J130*P130) -> 28.2
A131: " | B131: CC200 | E131: Call Cord - 1/4" Jack Call Cord w/ Clip (10ft.) | H131: =SUMIF('Input for Auto Config'!G$14:G$27,'R5K Details'!B131,'Input for Auto Config'!H$14:H$27) -> 0 | J131: 0 | K131: =VLOOKUP(B131,'2017'!C$4:J$257,7,FALSE) -> 45 | M131: =IF(J131*L131=0," ",J131*L131) ->  | P131: 0.1 | Q131: =IF(J131*P131=0," ",J131*P131) -> 
A132: " | B132: NC4JACK | E132: 1/4" Jack Auxiliary Input Station | H132: =SUMIF('Input for Auto Config'!C$14:C$27,B132,'Input for Auto Config'!D$14:D$27) -> 0 | J132: =I132+H132 -> 0 | K132: =VLOOKUP(B132,'2017'!C$4:J$257,7,FALSE) -> 195 | P132: 0.5
A133: " | B133: NCBED | E133: 37-pin Feature Bed Receptacle | J133: =I133 -> 0 | K133: =VLOOKUP(B133,'2017'!C$4:J$257,7,FALSE) -> 145 | M133: =IF(J133*L133=0," ",J133*L133) ->  | P133: 0.5 | Q133: =IF(J133*P133=0," ",J133*P133) -> 
A134: " | B134: NCC37 | E134: 37-pin Feature Bed Cable | J134: 0 | K134: =VLOOKUP(B134,'2017'!C$4:J$257,7,FALSE) -> 158 | P134: 0.5
A135: " | B135: NCC37RA | E135: 37-pin Feature Bed Cable -Right Angle | J135: 0 | K135: =VLOOKUP(B135,'2017'!C$4:J$257,7,FALSE) -> 158 | P135: 0.5
A136: " | B136: NCLV120 | E136: Low Voltage Lighting Control 120V | H136: =SUMIF('Input for Auto Config'!G$14:G$27,'R5K Details'!B136,'Input for Auto Config'!H$14:H$27) -> 0 | J136: =H136+I136 -> 0 | K136: =VLOOKUP(B136,'2017'!C$4:J$257,7,FALSE) -> 213 | M136: =IF(J136*L136=0," ",J136*L136) ->  | P136: 0.5 | Q136: =IF(J136*P136=0," ",J136*P136) -> 
A137: " | B137: CM300 | E137: Chassis Fault Monitor | K137: =VLOOKUP(B137,'2017'!C$4:J$257,7,FALSE) -> 363 | P137: 0.5
A138: " | B138: PM300 | E138: Power Fault Monitor | K138: =VLOOKUP(B138,'2017'!C$4:J$257,7,FALSE) -> 343 | P138: 0.5
A139: " | B139: 350011 | E139: Bio-seals - Cancel Button (10) -- R4K SLIM ONLY | J139: 0 | K139: =VLOOKUP(B139,'2017'!C$4:J$257,7,FALSE) -> 28 | P139: 0.5
A140: " | B140: 350012 | E140: Bio-seals-Small Push Button (10) -- R4K SLIM ONLY | J140: 0 | K140: =VLOOKUP(B140,'2017'!C$4:J$257,7,FALSE) -> 28 | P140: 0.5
A141: " | B141: 350013 | E141: Bio-seals Large Push Button (10) -- R4K SLIM ONLY | J141: 0 | K141: =VLOOKUP(B141,'2017'!C$4:J$257,7,FALSE) -> 38 | P141: 0.5
A142: WaveWare | B142: STG | E142: WaveWare SIP to Tap Gateway | H142: =IF('Input for Auto Config'!C8="Yes",1,0) -> 1 | J142: =I142+H142 -> 1 | K142: =order_hack!F174 -> FQ | P142: 2 | Q142: 2
A143: WaveWare | B143: SPS-5V9E | E143: WaveWare Paging Transmitter for STG, 5W, Site Licensing | H143: =IF('Input for Auto Config'!C8="Yes",1,0) -> 1 | J143: =I143+H143 -> 1 | K143: =order_hack!F175 -> FQ | P143: 2 | Q143: 2
A144: WaveWare | B144: 0250-1250 | E144: WaveWare Responder 5000 Messaging Server | H144: =IF('Input for Auto Config'!C9="Yes",1,0) -> 1 | J144: =I144+H144 -> 1 | K144: =order_hack!F176 -> FQ
A145: WaveWare | B145: 0250-1003 | E145: WaveWare 10 User Account Bundle (app licenses) | H145: =IF(AND('Input for Auto Config'!C9="yes",'Input for Auto Config'!C10=""),10000,IF('Input for Auto Config'!C10<=2,0,IF('Input for Auto Config'!C10>2,ROUNDUP(('Input for Auto Config'!C10-2)/10,0)))) -> 10000 | J145: =I145+H145 -> 10000 | K145: 2500
E146: =IF(B146="","",VLOOKUP(B146,'2017'!C$4:J$250,2,FALSE)) ->  | J146: =I146 -> 0 | K146: =IF(B146="",0,VLOOKUP(B146,'2017'!C$4:J$257,7,FALSE)) -> 0 | O146: =IF(J146*N146=0," ",J146*N146) ->  | Q146: =IF(J146*P146=0," ",J146*P146) -> 
E147: =IF(B147="","",VLOOKUP(B147,'2017'!C$4:J$250,2,FALSE)) ->  | J147: 0 | K147: =IF(B147="",0,VLOOKUP(B147,'2017'!C$4:J$257,7,FALSE)) -> 0
E148: =IF(B148="","",VLOOKUP(B148,'2017'!C$4:J$250,2,FALSE)) ->  | J148: 0 | K148: =IF(B148="",0,VLOOKUP(B148,'2017'!C$4:J$257,7,FALSE)) -> 0
E149: =IF(B149="","",VLOOKUP(B149,'2017'!C$4:J$250,2,FALSE)) ->  | J149: =I149 -> 0 | K149: =IF(B149="",0,VLOOKUP(B149,'2017'!C$4:J$257,7,FALSE)) -> 0 | O149: =IF(J149*N149=0," ",J149*N149) ->  | Q149: =IF(J149*P149=0," ",J149*P149) -> 
L150: Amps --> | M150: =SUM(M24:M149,M19:M20) -> 60.912 | N150: Hours --> | O150: =SUM(O7:O148) -> 0 | P150: Hours --> | Q150: =SUM(Q7:Q148) -> 839.8
A152: =A2 -> International Responder 5000 2018 Estimate Sheet v 1.31 | M152: Job Name: | N152: =IF(N2="","",N2) -> Angol
A153: Cable | M153: System: | N153: =IF(N3="","",N3) -> Cencomex
B154: DATE: | E154: =IF(E4="","",E4) -> 2018-01-11 | M154: Salesperson: | N154: =IF(N4="","",N4) -> Cristian Yañez
A155: MANUF. | B155: Part # | E155: Description | J155: Qty | K155: Distributor Cable Cost per 1000' | L155: Distributor Extended Cable Cost | N155: Cable Labor | O155: Cable Labor Total | P155: Notes
E156: 4-Pair Cat5 Ethernet cable estimate (50ft/Room Device) | J156: =ROUNDUP(((SUM(J30:J74,J21)*50))/1000,0) -> 46 | K156: 0 | L156: =K156*J156 -> 0 | M156: =IF(J156*L156=0," ",J156*L156) ->  | N156: 8 | O156: =IF(J156*N156=0," ",J156*N156) -> 368
E157: 4-Pair Cat5 Ethernet cable Estimate (250ft/Console) | J157: =ROUNDUP((SUM(J23:J23,J25,J20)*250)/1000,0) -> 6 | K157: 0 | L157: =K157*J157 -> 0 | M157: =IF(J157*L157=0," ",J157*L157) ->  | N157: 8 | O157: 48
E158: 4-Pair Cat5 Ethernet cable (400ft/MSC) | J158: =ROUNDUP((SUM(J11)*400)/1000,0) -> 2 | K158: 0 | L158: 0 | N158: 8 | O158: 16
E159: 4-Pair Cat5 Ethernet cable (30ft/Corridor Light/Domeless Controller) | J159: =ROUNDUP((SUM(J83:J91,J94:J103)*30)/1000,0) -> 11 | K159: 0 | L159: 0 | N159: 8 | O159: 88
E160: Power Common - #12 AWG | K160: 0 | L160: 0 | N160: 8
E161: Power Common - #14 AWG | J161: =ROUNDUP((SUM(J11,J22,J24,J81,J14)*100/1000),0) -> 2 | K161: 0 | L161: 0 | N161: 8 | O161: 16
K162: 0 | L162: 0 | N162: 8
K163: 0 | L163: 0
K164: 0 | L164: 0
K165: 0 | L165: 0
K166: 0 | L166: 0
K167: 0 | L167: 0
K168: 0 | L168: 0
K169: 0 | L169: 0
K170: 0 | L170: 0
K171: 0 | L171: 0
K172: 0 | L172: 0
K173: 0 | L173: 0
K174: 0 | L174: 0
L175: Total Cable, Etc. | M175: =SUM(L156:L174) -> 0 | N175: Hours --> | O175: =SUM(O156:O174) -> 536

Sheet ORDER
A1: Responder 5000 Nurse Call System Purchase Order | D1: Project Name: | E1: =IF('R5K Details'!N2="","",'R5K Details'!N2) -> Angol | G1: Enter Original date of Quote
B2: Responder 5000 Nurse Call System Order Entry Fax (800) 217-0977 | E2: Revision Date | G2: =TODAY() -> 2018-01-11
A3: 1. Click on the "Generate Purchase Order" button to get a complete list of required components for your system. 2. Fill in the required information in the light yellow cells to complete your order, then sign both pages and fax to Rauland. | D3: Please fill in all Pale Yellow boxes before printing
B4: PURCHASE ORDER | E4: Dist. P.O. # :
B5: Distributor Information | E5: Facility Information
B6: Distributor Name & Address | C6: =IF('R5K Details'!N3="","",'R5K Details'!N3) -> Cencomex | E6: Facility Name:
B7: Project Name/No. | E7: Facility Address:
B8: Dist. Contact Person:
B10: Shipping Instructions: | C10: Ship To Address:
C11: Method of Shipment: | F11: Accept Partials? (yes/no): | H11: no
C12: Requested Ship Date (mm/dd/yy): | E12: Special Instructions? (yes/no): | H12: no
B13: Projected Time Frame for Job
A14: Qty. | B14: Part Number | C14: Description | D14: List Price Ea. | E14: Extended List Price | F14: Distributor Prices
A16: Head End | F16: Net | G16: Extended Net
A17: Responder 5000
A18: 12 | B18: NC2828 | C18: Head-End Equipment Cabinet | D18: 1680 | E18: 20160 | F18: 672 | G18: 8064
A19: 24 | B19: R5KMPR15 | C19: Power Supply 15V for Stations, CLs, DCs (w/battery backup) | D19: 933 | E19: 22392 | F19: 311 | G19: 7464
A20: 12 | B20: R5KMPR36 | C20: Power Supply 36V for MSC, Console (w/battery backup) | D20: 900 | E20: 10800 | F20: 300 | G20: 3600
A21: 4 | B21: R5KMSC | C21: Main System Controller | D21: 1803 | E21: 7212 | F21: 601 | G21: 2404
A22: 1 | B22: 351010 | C22: Responder Network Concentrator | D22: 12108 | E22: 12108 | F22: 4843 | G22: 4843
A23: 8 | B23: R5KM8PRT | C23: R5K 8-Port Switch | D23: 1113 | E23: 8904 | F23: 371 | G23: 2968
A24: 2 | B24: 351006 | C24: Fiber Adapter Modules | D24: 510 | E24: 1020 | F24: 204 | G24: 408
A25: 9 | B25: R5KL2KA | C25: Data Converter for K-Bus to L-Net | D25: 543 | E25: 4887 | F25: 181 | G25: 1629
A26: 9 | B26: R5KMTRM | C26: Termination Board | D26: 183 | E26: 1647 | F26: 61 | G26: 549
A27: 24 | B27: R5KCONS | C27: VoIP Nurse Console | D27: 1836 | E27: 44064 | F27: 612 | G27: 14688
A28: 9 | B28: R4KPA25 | C28: Paging Amplifier | D28: 858 | E28: 7722 | F28: 286 | G28: 2574
A29: 218 | B29: R5KDC46 | C29: 6-Point, 4-Point Audio Domeless Controller | D29: 315 | E29: 68670 | F29: 105 | G29: 22890
A30: 3 | B30: R5KDC16D | C30: 6-Point, 1 Point Audio Duty Domeless Controller | D30: 330 | E30: 990 | F30: 110 | G30: 330
A31: 282 | B31: R5KPS1EA | C31: R5K Enhanced Single Station | D31: 165 | E31: 46530 | F31: 55 | G31: 15510
A32: 3 | B32: R5KSDTY | C32: R5K Duty Station | D32: 132 | E32: 396 | F32: 44 | G32: 132
A33: 178 | B33: R4KPB12 | C33: SLIM Single Button St | D33: 90 | E33: 16020 | F33: 30 | G33: 5340
A34: 371 | B34: R4KPB23 | C34: SLIM Dual Button w/ Code St | D34: 99 | E34: 36729 | F34: 33 | G34: 12243
A35: 78 | B35: R4KPC11 | C35: SLIM Pull Cord St | D35: 93 | E35: 7254 | F35: 31 | G35: 2418
A36: 142 | B36: CLA246 | C36: Audio 4-Bulb Corridor Light | D36: 408 | E36: 57936 | F36: 163 | G36: 23146
A37: Software
A38: 1 | B38: R5KMRPT | C38: Reporting Software License (1 per system) | D38: 9000 | E38: 9000 | F38: 3000 | G38: 3000
A39: 1 | B39: R5KMSIP | C39: SIP Telephony Software License (1 per system) | D39: 5175 | E39: 5175 | F39: 1725 | G39: 1725
A40: 1 | B40: 355005 | C40: Responder SIP Server (1 per System) | D40: 4125 | E40: 4125 | F40: 1650 | G40: 1650
A41: ACCESSORIES
A42: 27 | B42: 350018 | C42: Responder 8-pin SL Connector (Pack of 100) | D42: 338 | E42: 9126 | F42: 135 | G42: 3645
A43: Pillow Speakers/Call Cords
A44: 282 | B44: CCDIN | C44: Call Cord - Single w/ Clip (10 ft.) | D44: 55 | E44: 15510 | F44: 22 | G44: 6204
A45: Additional Items
A46: 1 | B46: STG | C46: WaveWare SIP to Tap Gateway | D46: FQ | E46: FQ | F46: FQ | G46: FQ
A47: 1 | B47: SPS-5V9E | C47: WaveWare Paging Transmitter for STG, 5W, Site Licensing | D47: FQ | E47: FQ | F47: FQ | G47: FQ
A48: 1 | B48: 0250-1250 | C48: WaveWare Responder 5000 Messaging Server | D48: FQ | E48: FQ | F48: FQ | G48: FQ
A49: 10000 | B49: 0250-1003 | C49: WaveWare 10 User Account Bundle (app licenses) | D49: FQ | E49: FQ | F49: FQ | G49: FQ
A90: * Prices not in printed Price List are subject to change. | D90: Responder 5000 Suggested List Total: | G90: =SUM(E17:E89) -> 418377
A91: Distributor Discount: | G91: =G90-G92 -> 270953 | H91: =1-order_hack!F4 -> 0.6 | I91: Price per Bed (List Price)
A92: This program should be used as a guide when configuring/pricing a Responder 5000 system. Rauland-Borg is not responsible for any discrepancies in this program. Refer to Responder 5000 Installation and Configuration Manuals for assistance. | E92: Discounted Price: | G92: =order_hack!G205 -> 147424 | I92: =IF(G90=0,0,IF(SUM(order_hack!C35:C36,order_hack!C38:C40,order_hack!C44:C51,(SUM(order_hack!C37,order_hack!C52:C54)*2))=0,0,G90/SUM(order_hack!C35:C36,order_hack!C38:C40,order_hack!C44:C51,(SUM(order_hack!C37,order_hack!C52:C54)*2)))) -> 1483.606383
D93: Total Cable Selling Cost --> | G93: 0
D94: Total Labor Cost --> | G94: 0
D95: Total Misc. Installation Cost --> | G95: 0
A96: Customer Responder 5000 Total: | G96: =SUM(G92:G95) -> 147424
C97: Yearly Software Maintenance Agreement Distributor Price | F97: See Below | G97: 247.5
C98: If the Total Price of the Miscellaneous items is over 1,000,000.00 then you need to go back to the General Information page and enter in values for some servers.
B100: =B117 -> TOTAL PRICE of Non-Rauland Miscellaneous Items not included in Quote above. | F100: See Below | G100: =E117 -> 4300
B101: Enter Miscellaneous Items (not listed in this quote above)
B102: Enter Miscellaneous Non-Rauland Items (not listed elsewhere in this auto quote) | E102: Price Each | F102: Quantity | G102: Ext. Price
B103: SIP Firewall | G103: =F103*E103 -> 0
B104: Server - Reports to include MS SQL 2014 Express | E104: 4300 | F104: =IF('R5K Details'!J16=1,1,0) -> 1 | G104: 4300
B105: Responder SIP Server | E105: 4300 | F105: =IF(AND('R5K Details'!J16=1,'R5K Details'!J17=1),0,IF(AND('R5K Details'!J16=0,'R5K Details'!J17=1),1,0)) -> 0 | G105: 0
E106: 0 | F106: 0 | G106: 0
E107: 0 | F107: 0 | G107: 0
E108: 0 | F108: 0 | G108: 0
E109: 0 | F109: 0 | G109: 0
E110: 0 | F110: 0 | G110: 0
E111: 0 | F111: 0 | G111: 0
E112: 0 | F112: 0 | G112: 0
E113: 0 | F113: 0 | G113: 0
E114: 0 | F114: 0 | G114: 0
E115: 0 | F115: 0 | G115: 0
B116: Miscellaneous Accessories Total: | G116: =SUM(G103:G115) -> 4300
B117: TOTAL PRICE of Non-Rauland Miscellaneous Items not included in Quote above. | E117: =G116 -> 4300
B120: Page 1 of 2 | G120: =TODAY() -> 2018-01-11
C121: Authorization Signature | E121: Name | G121: Date
B122: Rauland Order Entry Fax (800)217-0977
B123: We will accept Partial Shipments on Peripherals/Accessories? | H123: Y
B127: I authorize Rauland to add the following items to my order should they be required to make a system functional/complete: | F127: Power Supplies | H127: Y
F128: 8 port Switches | H128: Y
F129: K-Bus to L-Net Adapters | H129: Y
A132: Responder 5000 Nurse Call System Server Requirements (minimum)
B134: =IF(F104=1,"Responder Applications Server","") -> Responder Applications Server | D134: =IF(F104=1,"Please refer to Application Note R5000_APPNOTE_In_Your_IT_Environment","") -> Please refer to Application Note R5000_APPNOTE_In_Your_IT_Environment
B135: =IF(F105=1,"Responder SIP Server","") ->  | D135: =IF(F105=1,"Please refer to Application Note R5000_APPNOTE_In_Your_IT_Environment","") -> 
B138: Facility Information
B139: Facility Name: | C139: =IF($F$6="","",$F$6) -> 
C140: =IF($F$7="","",$F$7) -> 
C141: =IF($F$8="","",$F$8) -> 
B142: Contact Name (optional): | D142: Contact Phone Number (optional):
A144: Software Maintenance Agreement
B145: Software Maintenance agreements entitle the facility to software service packs, new releases and customer support for all Responder Database, Application and Integration software after the first 12 months. Software Maintenance Agreement will be directly billed to the facility after the first 14 months after initial activation of the software has elapsed and will continue annually, unless otherwise instructed by the facility.
B147: The Software Maintenance Agreement cost will be automatically added to any purchase order.
C148: Yearly Software Maintenance Agreement Distributor Price | G148: =order_hack!F111 -> 247.5
A150: This program should be used as a guide when configuring/pricing a Responder 5 system. Rauland-Borg is not responsible for any discrepancies in this program. Refer to Responder 5 Installation and Configuration Manuals for assistance.
E152: =IF($E$132="","",$E$132) ->  | G152: 1900-09-03T12:00:00
C153: Authorization Signature | E153: Name | G153: Date
B155: Customer Information | E155: Facility Information
B156: Customer | C156: =C6 -> Cencomex | E156: Facility Name: | F156: =F6 -> 0
B157: Project Name/No. | C157: =C7 -> 0 | E157: Facility Address: | F157: =F7 -> 0
B158: Cust. Contact Person: | C158: =C8 -> 0
B159: Facility Information | D159: Answer | F159: Helpful Information
B160: Type of Facility?
B161: # of licensed patient beds?
B162: # of inpatient units?
B163: Is this a stand alone facility or part of a healthcare system?
B164: If part of a system, how many facilities do you anticipate interfacing to a single data center?
B165: What brand of wireless devices does the site have? | G165: Cisco, Ascom i75, SpectraLink 900, etc.
B167: Network Information
B168: Is the datacenter in the same building as resident rooms?
B169: What is the speed to the datacenter from unit?
B170: Does the facility network operate on a WAN?
B171: Does the facility network operate on a LAN?
B172: Will the site allow remote access to servers via VPN?
B173: If so, which VPN client software?
B174: What type of switches does the site standardize on?
B175: Is a network topology diagram available for our review?
B177: Backup and Recovery Information
B178: Type of backup environment
B179: Frequency of backup
B180: Are the backup jobs run at a certain time of the day?
B181: What is the backup software vendor and application name?
B182: Is replication desired (required)?
B183: If so, who is the vendor for replication used?
B184: Does the site operate in a SAN environment?
B185: If so, who is the vendor used?
B187: Database Information
B188: Most common type of database server | G188: MS SQL, Oracle, etc.
B189: Is the site backing up the databases via MS SQL Server database utility, or using an external backup?
B190: Does the site archive their data in their databases? | G190: (remove data from database to conserve on space)
B191: Does the site have the ability to tune database performance?
B192: What is the site's policy for applying updates to MS SQL Server?
B194: Server Information
B195: Brand of servers typically used | G195: i.e. Dell, Compaq, IBM, etc.
B196: Name of Interface Engine
B197: Name of antivirus software vendor. | G197: McAfee, Norton, etc.
B198: Are the servers organized in grids?
B199: Name of operating systems supported.
B200: Are the site's servers virtualized?
B201: If so, who is the vendor and application?
B202: What is the site's policy for applying updates to the operating system, Windows Server?
B204: Software and Integration Information
B205: Who is the site's wireless phone vendor(s)?
B206: Is it integrated with their nurse call system?
B207: Who is the site's pager vendor?
B208: Who is the site's PBX (Public Branch Exchange) vendor?
B209: Is it integrated with their resident care system?
B210: Is it integrated via a middleware? If so, which middleware? | G210: staff, patients, assets, visitors
B212: Client Workstation Information
B213: Brand of PC's typically used | G213: Dell, Gateways, etc.
B214: Name and version of operating system typically seen | G214: Windows XP Professional sp2
B215: Name of antivirus software vendor for clients.
B216: Does the site use touch screen monitors?
B218: Security Information
B219: Name of directory or user services application
B220: Does the site use token identification? | G220: i.e. barcodes, proximity readers, swipe, etc.
B222: IT Personnel Information
B223: Is there a dedicated DBA on staff? | G223: provide names here
B224: Is there a network architect on staff? | G224: provide names here
B225: Is there a System Administrator on staff? | G225: provide names here
B226: Is there a dedicated Project Manager on staff for this project?

Sheet order_hack (hidden)
A1: Responder 5000 Nurse Call System | E1: Project Name: | F1: Project Name
E2: Date: | F2: =TODAY() -> 2018-01-11
G3: GPO factor | H3: BOM setting
A4: distributor/dealer discount | F4: 0.4 | G4: 1.2
A5: R5K
A7: Model # | B7: Description | D7: Dist Net Price | E7: Extended Price | F7: List Price | G7: Extended List Price
J8: # of R4KPR400 | K8: # of R5KMPR15
A9: NC2828 | B9: Head-End Equipment Cabinet | C9: ='R5K Details'!J7 -> 12 | D9: =VLOOKUP(A9,'2017'!C$4:J$257,8,FALSE) -> 672 | E9: =D9*C9 -> 8064 | F9: =VLOOKUP(A9,'2017'!C$4:J$257,7,FALSE) -> 1680 | G9: =F9*C9 -> 20160 | K9: ='R5K Details'!J9 -> 24
A10: 351102 | B10: Wall Mounting Cabinet-head-end | C10: ='R5K Details'!J8 -> 0 | D10: =VLOOKUP(A10,'2017'!C$4:J$257,8,FALSE) -> 458 | E10: =D10*C10 -> 0 | F10: =VLOOKUP(A10,'2017'!C$4:J$257,7,FALSE) -> 1145 | G10: =F10*C10 -> 0
A11: R5KMPR15 | B11: Power Supply 15V for Stations, CLs, DCs (w/battery backup) | C11: =IF(J9=0,K9,K9) -> 24 | D11: =VLOOKUP(A11,'2017'!C$4:J$257,8,FALSE) -> 311 | E11: =D11*C11 -> 7464 | F11: =VLOOKUP(A11,'2017'!C$4:J$257,7,FALSE) -> 933 | G11: 22392
A12: R5KMPR36 | B12: Power Supply 36V for MSC, Console (w/battery backup) | C12: ='R5K Details'!J10 -> 12 | D12: =VLOOKUP(A12,'2017'!C$4:J$257,8,FALSE) -> 300 | E12: 3600 | F12: =VLOOKUP(A12,'2017'!C$4:J$257,7,FALSE) -> 900 | G12: =F12*C12 -> 10800
A13: R5KMSC | B13: Main System Controller | C13: ='R5K Details'!J11 -> 4 | D13: =VLOOKUP(A13,'2017'!C$4:J$257,8,FALSE) -> 601 | E13: 2404 | F13: =VLOOKUP(A13,'2017'!C$4:J$257,7,FALSE) -> 1803 | G13: 7212
A14: 351010 | B14: Responder Network Concentrator | C14: ='R5K Details'!J12 -> 1 | D14: =VLOOKUP(A14,'2017'!C$4:J$257,8,FALSE) -> 4843 | E14: =D14*C14 -> 4843 | F14: =VLOOKUP(A14,'2017'!C$4:J$257,7,FALSE) -> 12108 | G14: =F14*C14 -> 12108
A15: R5KM8PRT | B15: R5K 8-Port Switch | C15: ='R5K Details'!J13 -> 8 | D15: =VLOOKUP(A15,'2017'!C$4:J$257,8,FALSE) -> 371 | E15: 2968 | F15: =VLOOKUP(A15,'2017'!C$4:J$257,7,FALSE) -> 1113 | G15: 8904
A16: 351006 | B16: Fiber Adapter Modules | C16: ='R5K Details'!J14 -> 2 | D16: =VLOOKUP(A16,'2017'!C$4:J$257,8,FALSE) -> 204 | E16: =D16*C16 -> 408 | F16: =VLOOKUP(A16,'2017'!C$4:J$257,7,FALSE) -> 510 | G16: =F16*C16 -> 1020
A17: R5KL2KA | B17: Data Converter for K-Bus to L-Net | C17: ='R5K Details'!J15 -> 9 | D17: =VLOOKUP(A17,'2017'!C$4:J$257,8,FALSE) -> 181 | E17: 1629 | F17: =VLOOKUP(A17,'2017'!C$4:J$257,7,FALSE) -> 543 | G17: 4887
A18: R5KMTRM | B18: Termination Board | C18: ='R5K Details'!J22 -> 9 | D18: =VLOOKUP(A18,'2017'!C$4:J$257,8,FALSE) -> 61 | E18: 549 | F18: =VLOOKUP(A18,'2017'!C$4:J$257,7,FALSE) -> 183 | G18: 1647
A19: R5KCONS | B19: VoIP Nurse Console | C19: ='R5K Details'!J23 -> 24 | D19: =VLOOKUP(A19,'2017'!C$4:J$257,8,FALSE) -> 612 | E19: 14688 | F19: =VLOOKUP(A19,'2017'!C$4:J$257,7,FALSE) -> 1836 | G19: 44064
A20: R4KPA25 | B20: Paging Amplifier | C20: ='R5K Details'!J19 -> 9 | D20: =VLOOKUP(A20,'2017'!C$4:J$257,8,FALSE) -> 286 | E20: 2574 | F20: =VLOOKUP(A20,'2017'!C$4:J$257,7,FALSE) -> 858 | G20: 7722
A21: R4KMQCV2 | B21: Marquee Controller | C21: ='R5K Details'!J20 -> 0 | D21: =VLOOKUP(A21,'2017'!C$4:J$257,8,FALSE) -> 169 | E21: 0 | F21: =VLOOKUP(A21,'2017'!C$4:J$257,7,FALSE) -> 507 | G21: 0
A22: R4KMST | B22: Marquee Speaker Station | C22: ='R5K Details'!J21 -> 0 | D22: =VLOOKUP(A22,'2017'!C$4:J$257,8,FALSE) -> 41 | E22: 0 | F22: =VLOOKUP(A22,'2017'!C$4:J$257,7,FALSE) -> 123 | G22: 0
A23: R4KTMB | B23: Termination Board | C23: ='R5K Details'!J24 -> 0 | D23: =VLOOKUP(A23,'2017'!C$4:J$257,8,FALSE) -> 62 | E23: 0 | F23: =VLOOKUP(A23,'2017'!C$4:J$257,7,FALSE) -> 155 | G23: 0
A24: R4KANNV2 | B24: Annunciate Panel (comes with a Receptacle) | C24: ='R5K Details'!J25 -> 0 | D24: =VLOOKUP(A24,'2017'!C$4:J$257,8,FALSE) -> 294 | E24: 0 | F24: =VLOOKUP(A24,'2017'!C$4:J$257,7,FALSE) -> 882 | G24: 0
A25: R4KRECP | B25: R4K Console Receptacle | C25: ='R5K Details'!J26 -> 0 | D25: =VLOOKUP(A25,'2017'!C$4:J$257,8,FALSE) -> 22 | E25: 0 | F25: =VLOOKUP(A25,'2017'!C$4:J$257,7,FALSE) -> 66 | G25: 0
A26: R5KCL506 | B26: 5-Bulb, Visual Corridor Light | C26: ='R5K Details'!J83 -> 0 | D26: =VLOOKUP(A26,'2017'!C$4:J$257,8,FALSE) -> 66 | E26: =D26*C26 -> 0 | F26: =VLOOKUP(A26,'2017'!C$4:J$257,7,FALSE) -> 198 | G26: =F26*C26 -> 0
A27: R5KCL516 | B27: 5-Bulb, 1-Point Audio Corridor Light | C27: ='R5K Details'!J84 -> 0 | D27: =VLOOKUP(A27,'2017'!C$4:J$257,8,FALSE) -> 79 | E27: 0 | F27: =VLOOKUP(A27,'2017'!C$4:J$257,7,FALSE) -> 237 | G27: 0
A28: R5KCL546 | B28: 5-Bulb, 4-Point Audio Corridor Light | C28: ='R5K Details'!J85 -> 0 | D28: =VLOOKUP(A28,'2017'!C$4:J$257,8,FALSE) -> 90 | E28: 0 | F28: =VLOOKUP(A28,'2017'!C$4:J$257,7,FALSE) -> 270 | G28: 0
A29: R5KDC06 | B29: 6-Point Visual Domeless Controller | C29: ='R5K Details'!J88 -> 0 | D29: =VLOOKUP(A29,'2017'!C$4:J$257,8,FALSE) -> 88 | E29: 0 | F29: =VLOOKUP(A29,'2017'!C$4:J$257,7,FALSE) -> 264 | G29: 0
A30: R5KDC016 | B30: 16-Point Visual Domeless Controller | C30: ='R5K Details'!J89 -> 0 | D30: =VLOOKUP(A30,'2017'!C$4:J$257,8,FALSE) -> 123 | E30: 0 | F30: =VLOOKUP(A30,'2017'!C$4:J$257,7,FALSE) -> 369 | G30: 0
A31: R5KDC46 | B31: 6-Point, 4-Point Audio Domeless Controller | C31: ='R5K Details'!J90 -> 218 | D31: =VLOOKUP(A31,'2017'!C$4:J$257,8,FALSE) -> 105 | E31: 22890 | F31: =VLOOKUP(A31,'2017'!C$4:J$257,7,FALSE) -> 315 | G31: 68670
A32: R5KDC16D | B32: 6-Point, 1 Point Audio Duty Domeless Controller | C32: ='R5K Details'!J91 -> 3 | D32: =VLOOKUP(A32,'2017'!C$4:J$257,8,FALSE) -> 110 | E32: 330 | F32: =VLOOKUP(A32,'2017'!C$4:J$257,7,FALSE) -> 330 | G32: 990
A33: R5KDCRC4 | B33: Relay Output Control | C33: ='R5K Details'!J92 -> 0 | D33: =VLOOKUP(A33,'2017'!C$4:J$257,8,FALSE) -> 40 | E33: 0 | F33: =VLOOKUP(A33,'2017'!C$4:J$257,7,FALSE) -> 120 | G33: 0
A34: R5KDCRCS4 | B34: Solid State Relay Output Control | C34: ='R5K Details'!J93 -> 0 | D34: =VLOOKUP(A34,'2017'!C$4:J$257,8,FALSE) -> 48 | E34: 0 | F34: =VLOOKUP(A34,'2017'!C$4:J$257,7,FALSE) -> 144 | G34: 0
A35: R5KPD2EA | B35: R5K Enhnaced Dual Patient Station | C35: ='R5K Details'!J30 -> 0 | D35: =VLOOKUP(A35,'2017'!C$4:J$257,8,FALSE) -> 72 | E35: 0 | F35: =VLOOKUP(A35,'2017'!C$4:J$257,7,FALSE) -> 216 | G35: 0
A36: R5KPS1EA | B36: R5K Enhanced Single Station | C36: ='R5K Details'!J31 -> 282 | D36: =VLOOKUP(A36,'2017'!C$4:J$257,8,FALSE) -> 55 | E36: 15510 | F36: =VLOOKUP(A36,'2017'!C$4:J$257,7,FALSE) -> 165 | G36: 46530
A37: R5KPD2A | B37: R5K Dual Patient Station | C37: ='R5K Details'!J32 -> 0 | D37: =VLOOKUP(A37,'2017'!C$4:J$257,8,FALSE) -> 59 | E37: 0 | F37: =VLOOKUP(A37,'2017'!C$4:J$257,7,FALSE) -> 177 | G37: 0
A38: R5KPS1A | B38: R5K Single Audio Patient Station | C38: ='R5K Details'!J33 -> 0 | D38: =VLOOKUP(A38,'2017'!C$4:J$257,8,FALSE) -> 42 | E38: 0 | F38: =VLOOKUP(A38,'2017'!C$4:J$257,7,FALSE) -> 126 | G38: 0
A39: R5KPS1V | B39: R5K Single Patient Visual Station | C39: ='R5K Details'!J34 -> 0 | D39: =VLOOKUP(A39,'2017'!C$4:J$257,8,FALSE) -> 35 | E39: 0 | F39: =VLOOKUP(A39,'2017'!C$4:J$257,7,FALSE) -> 105 | G39: 0
A40: R5KPS1LCA | B40: R5K Audio Single Patient Station with Lighting Control | C40: ='R5K Details'!J35 -> 0 | D40: =VLOOKUP(A40,'2017'!C$4:J$257,8,FALSE) -> 60 | E40: 0 | F40: =VLOOKUP(A40,'2017'!C$4:J$257,7,FALSE) -> 180 | G40: 0
A41: R5KSSTF | B41: R5K Staff Station | C41: ='R5K Details'!J36 -> 0 | D41: =VLOOKUP(A41,'2017'!C$4:J$257,8,FALSE) -> 37 | E41: 0 | F41: =VLOOKUP(A41,'2017'!C$4:J$257,7,FALSE) -> 111 | G41: 0
A42: R5KSDTY | B42: R5K Duty Station | C42: ='R5K Details'!J37 -> 3 | D42: =VLOOKUP(A42,'2017'!C$4:J$257,8,FALSE) -> 44 | E42: 132 | F42: =VLOOKUP(A42,'2017'!C$4:J$257,7,FALSE) -> 132 | G42: 396
A43: R4K15V | B43: SLIM 1/4" Jack / Button St | C43: ='R5K Details'!J42 -> 0 | D43: =VLOOKUP(A43,'2017'!C$4:J$257,8,FALSE) -> 41 | E43: 0 | F43: =VLOOKUP(A43,'2017'!C$4:J$257,7,FALSE) -> 123 | G43: 0
A44: R4K17V | B44: SLIM Enh Single Call St | C44: ='R5K Details'!J43 -> 0 | D44: =VLOOKUP(A44,'2017'!C$4:J$257,8,FALSE) -> 62 | E44: 0 | F44: =VLOOKUP(A44,'2017'!C$4:J$257,7,FALSE) -> 186 | G44: 0
A45: R4K11V | B45: Single Patient Station - Visual | C45: ='R5K Details'!J44 -> 0 | D45: =VLOOKUP(A45,'2017'!C$4:J$257,8,FALSE) -> 38 | E45: 0 | F45: =VLOOKUP(A45,'2017'!C$4:J$257,7,FALSE) -> 95 | G45: 0
A46: R4K12A | B46: Single Patient Station - Audio | C46: ='R5K Details'!J45 -> 0 | D46: =VLOOKUP(A46,'2017'!C$4:J$257,8,FALSE) -> 41 | E46: 0 | F46: =VLOOKUP(A46,'2017'!C$4:J$257,7,FALSE) -> 103 | G46: 0
A47: R4K12AHZ | B47: Horizontal Single Patient Station - Audio | C47: ='R5K Details'!J46 -> 0 | D47: =VLOOKUP(A47,'2017'!C$4:J$257,8,FALSE) -> 43 | E47: 0 | F47: =VLOOKUP(A47,'2017'!C$4:J$257,7,FALSE) -> 108 | G47: 0
A48: R4K13VA | B48: Enhanced Single Patient Station - Audio | C48: ='R5K Details'!J47 -> 0 | D48: =VLOOKUP(A48,'2017'!C$4:J$257,8,FALSE) -> 81 | E48: 0 | F48: =VLOOKUP(A48,'2017'!C$4:J$257,7,FALSE) -> 203 | G48: 0
A49: R4K13VAHZ | B49: Horizontal Enh Single Patient Station - Audio | C49: ='R5K Details'!J48 -> 0 | D49: =VLOOKUP(A49,'2017'!C$4:J$257,8,FALSE) -> 82 | E49: 0 | F49: =VLOOKUP(A49,'2017'!C$4:J$257,7,FALSE) -> 205 | G49: 0
A50: R4K14SA | B50: Single Patient w/ Staff Emer | C50: ='R5K Details'!J49 -> 0 | D50: =VLOOKUP(A50,'2017'!C$4:J$257,8,FALSE) -> 52 | E50: 0 | F50: =VLOOKUP(A50,'2017'!C$4:J$257,7,FALSE) -> 130 | G50: 0
A51: R4K16LV | B51: Enhanced Single Patient Station - Visual | C51: ='R5K Details'!J50 -> 0 | D51: =VLOOKUP(A51,'2017'!C$4:J$257,8,FALSE) -> 65 | E51: 0 | F51: =VLOOKUP(A51,'2017'!C$4:J$257,7,FALSE) -> 163 | G51: 0
A52: R4K21V | B52: Dual Patient Station - Visual | C52: ='R5K Details'!J51 -> 0 | D52: =VLOOKUP(A52,'2017'!C$4:J$257,8,FALSE) -> 50 | E52: 0 | F52: =VLOOKUP(A52,'2017'!C$4:J$257,7,FALSE) -> 125 | G52: 0
A53: R4K22A | B53: Dual Patient Station - Audio | C53: ='R5K Details'!J52 -> 0 | D53: =VLOOKUP(A53,'2017'!C$4:J$257,8,FALSE) -> 53 | E53: 0 | F53: =VLOOKUP(A53,'2017'!C$4:J$257,7,FALSE) -> 133 | G53: 0
A54: R4K23VA | B54: Enhanced Dual Patient Station - Audio | C54: ='R5K Details'!J53 -> 0 | D54: =VLOOKUP(A54,'2017'!C$4:J$257,8,FALSE) -> 101 | E54: 0 | F54: =VLOOKUP(A54,'2017'!C$4:J$257,7,FALSE) -> 253 | G54: 0
A55: HSS400 | B55: High Security Audio Bed Station | C55: ='R5K Details'!J54 -> 0 | D55: =VLOOKUP(A55,'2017'!C$4:J$257,8,FALSE) -> 258 | E55: 0 | F55: =VLOOKUP(A55,'2017'!C$4:J$257,7,FALSE) -> 774 | G55: 0
A56: HSS401 | B56: High Security Staff Station | C56: ='R5K Details'!J55 -> 0 | D56: =VLOOKUP(A56,'2017'!C$4:J$257,8,FALSE) -> 258 | E56: 0 | F56: =VLOOKUP(A56,'2017'!C$4:J$257,7,FALSE) -> 774 | G56: 0
A57: HSS433 | B57: High Security Push Button Station | C57: ='R5K Details'!J56 -> 0 | D57: =VLOOKUP(A57,'2017'!C$4:J$257,8,FALSE) -> 258 | E57: 0 | F57: =VLOOKUP(A57,'2017'!C$4:J$257,7,FALSE) -> 774 | G57: 0
A58: R4KSS | B58: Staff Station | C58: ='R5K Details'!J57 -> 0 | D58: =VLOOKUP(A58,'2017'!C$4:J$257,8,FALSE) -> 41 | E58: 0 | F58: =VLOOKUP(A58,'2017'!C$4:J$257,7,FALSE) -> 103 | G58: 0
A59: R4KDY | B59: Duty Station | C59: ='R5K Details'!J58 -> 0 | D59: =VLOOKUP(A59,'2017'!C$4:J$257,8,FALSE) -> 57 | E59: 0 | F59: =VLOOKUP(A59,'2017'!C$4:J$257,7,FALSE) -> 143 | G59: 0
A60: R5KPB4 | B60: Responder 5K 4-button Workflow and Registration Station | C60: ='R5K Details'!J38 -> 0 | D60: =VLOOKUP(A60,'2017'!C$4:J$257,8,FALSE) -> 41 | E60: 0 | F60: =VLOOKUP(A60,'2017'!C$4:J$257,7,FALSE) -> 123 | G60: 0
A61: R5KPC11WP | B61: Waterproof Pullcord Station | C61: ='R5K Details'!J39 -> 0 | E61: 0 | F61: Future | G61: =IF(F61="Future","Future",F61*C61) -> Future
A62: R5KPC11WPS | B62: Waterproof Pullcord Station - Spanish | C62: ='R5K Details'!J40 -> 0 | E62: 0 | F62: Future | G62: =IF(F62="Future","Future",F62*C62) -> Future
A63: R5KPC11WPF | B63: Waterproof Pullcord Station - French | C63: ='R5K Details'!J41 -> 0 | E63: 0 | F63: Future | G63: Future
A64: R4K2JACK | B64: SLIM Dual 1/4" Jack St | C64: ='R5K Details'!J59 -> 0 | D64: =VLOOKUP(A64,'2017'!C$4:J$257,8,FALSE) -> 45 | E64: 0 | F64: =VLOOKUP(A64,'2017'!C$4:J$257,7,FALSE) -> 135 | G64: 0
A65: R4KCB13 | B65: SLIM Code Button St | C65: ='R5K Details'!J60 -> 0 | D65: =VLOOKUP(A65,'2017'!C$4:J$257,8,FALSE) -> 34 | E65: 0 | F65: =VLOOKUP(A65,'2017'!C$4:J$257,7,FALSE) -> 102 | G65: 0
A66: R4KDTY2 | B66: SLIM Duty St w/ Speaker | C66: ='R5K Details'!J61 -> 0 | D66: =VLOOKUP(A66,'2017'!C$4:J$257,8,FALSE) -> 57 | E66: 0 | F66: =VLOOKUP(A66,'2017'!C$4:J$257,7,FALSE) -> 143 | G66: 0
A67: R4KPB12 | B67: SLIM Single Button St | C67: ='R5K Details'!J62 -> 178 | D67: =VLOOKUP(A67,'2017'!C$4:J$257,8,FALSE) -> 30 | E67: 5340 | F67: =VLOOKUP(A67,'2017'!C$4:J$257,7,FALSE) -> 90 | G67: 16020
A68: R4KPB23 | B68: SLIM Dual Button w/ Code St | C68: ='R5K Details'!J63 -> 371 | D68: =VLOOKUP(A68,'2017'!C$4:J$257,8,FALSE) -> 33 | E68: 12243 | F68: =VLOOKUP(A68,'2017'!C$4:J$257,7,FALSE) -> 99 | G68: 36729
A69: R4KPC11 | B69: SLIM Pull Cord St | C69: ='R5K Details'!J64 -> 78 | D69: =VLOOKUP(A69,'2017'!C$4:J$257,8,FALSE) -> 31 | E69: 2418 | F69: =VLOOKUP(A69,'2017'!C$4:J$257,7,FALSE) -> 93 | G69: 7254
A70: R4KSAR | B70: SLIM Dual Button St | C70: ='R5K Details'!J65 -> 0 | D70: =VLOOKUP(A70,'2017'!C$4:J$257,8,FALSE) -> 34 | E70: 0 | F70: =VLOOKUP(A70,'2017'!C$4:J$257,7,FALSE) -> 102 | G70: 0
A71: R4KSPK | B71: SLIM Speaker Module | C71: ='R5K Details'!J66 -> 0 | D71: =VLOOKUP(A71,'2017'!C$4:J$257,8,FALSE) -> 15 | E71: 0 | F71: =VLOOKUP(A71,'2017'!C$4:J$257,7,FALSE) -> 45 | G71: 0
A72: R4KESR | B72: Emergency/Staff Registration Station | C72: ='R5K Details'!J67 -> 0 | D72: =VLOOKUP(A72,'2017'!C$4:J$257,8,FALSE) -> 43 | E72: 0 | F72: =VLOOKUP(A72,'2017'!C$4:J$257,7,FALSE) -> 108 | G72: 0
A73: R4KCNCL | B73: Cancel Station | C73: ='R5K Details'!J68 -> 0 | D73: =VLOOKUP(A73,'2017'!C$4:J$257,8,FALSE) -> 33 | E73: 0 | F73: =VLOOKUP(A73,'2017'!C$4:J$257,7,FALSE) -> 83 | G73: 0
A74: R4KCB12 | B74: Code Blue Station | C74: ='R5K Details'!J69 -> 0 | D74: =VLOOKUP(A74,'2017'!C$4:J$257,8,FALSE) -> 39 | E74: 0 | F74: =VLOOKUP(A74,'2017'!C$4:J$257,7,FALSE) -> 98 | G74: 0
A75: R4KPB11 | B75: Single Push Button -Push for Help | C75: ='R5K Details'!J70 -> 0 | D75: =VLOOKUP(A75,'2017'!C$4:J$257,8,FALSE) -> 36 | E75: 0 | F75: =VLOOKUP(A75,'2017'!C$4:J$257,7,FALSE) -> 90 | G75: 0
A76: R4KPC10 | B76: Pull Cord Station | C76: ='R5K Details'!J71 -> 0 | D76: =VLOOKUP(A76,'2017'!C$4:J$257,8,FALSE) -> 34 | E76: 0 | F76: =VLOOKUP(A76,'2017'!C$4:J$257,7,FALSE) -> 85 | G76: 0
A77: R4KPB22 | B77: Dual Push Button Station | C77: ='R5K Details'!J72 -> 0 | D77: =VLOOKUP(A77,'2017'!C$4:J$257,8,FALSE) -> 45 | E77: 0 | F77: =VLOOKUP(A77,'2017'!C$4:J$257,7,FALSE) -> 113 | G77: 0
A78: R4KPB44 | B78: Four Button Status Station | C78: ='R5K Details'!J73 -> 0 | D78: =VLOOKUP(A78,'2017'!C$4:J$257,8,FALSE) -> 51 | E78: 0 | F78: =VLOOKUP(A78,'2017'!C$4:J$257,7,FALSE) -> 128 | G78: 0
A79: R4KSR1 | B79: Staff Register Station | C79: ='R5K Details'!J74 -> 0 | D79: =VLOOKUP(A79,'2017'!C$4:J$257,8,FALSE) -> 32 | E79: 0 | F79: =VLOOKUP(A79,'2017'!C$4:J$257,7,FALSE) -> 80 | G79: 0
A80: R4KFAM | B80: Fire/Auxiliary Module | C80: ='R5K Details'!J80 -> 0 | D80: =VLOOKUP(A80,'2017'!C$4:J$257,8,FALSE) -> 39 | E80: 0 | F80: =VLOOKUP(A80,'2017'!C$4:J$257,7,FALSE) -> 117 | G80: 0
A81: R4KCAL | B81: Call Assurance Light | C81: ='R5K Details'!J81 -> 0 | D81: =VLOOKUP(A81,'2017'!C$4:J$257,8,FALSE) -> 27 | E81: 0 | F81: =VLOOKUP(A81,'2017'!C$4:J$257,7,FALSE) -> 81 | G81: 0
A82: CLV122 | B82: Visual 2-Bulb Corridor Light | C82: ='R5K Details'!J94 -> 0 | D82: =VLOOKUP(A82,'2017'!C$4:J$257,8,FALSE) -> 94 | E82: =D82*C82 -> 0 | F82: =VLOOKUP(A82,'2017'!C$4:J$257,7,FALSE) -> 235 | G82: =F82*C82 -> 0
A83: CLV144 | B83: Visual 4-Bulb Corridor Light | C83: ='R5K Details'!J95 -> 0 | D83: =VLOOKUP(A83,'2017'!C$4:J$257,8,FALSE) -> 108 | E83: 0 | F83: =VLOOKUP(A83,'2017'!C$4:J$257,7,FALSE) -> 270 | G83: 0
A84: DCV100 | B84: Visual Domeless Controller - 6 pt | C84: ='R5K Details'!J96 -> 0 | D84: =VLOOKUP(A84,'2017'!C$4:J$257,8,FALSE) -> 106 | E84: 0 | F84: =VLOOKUP(A84,'2017'!C$4:J$257,7,FALSE) -> 265 | G84: 0
A85: DCV116 | B85: Visual Domeless Controller - 16 pt | C85: ='R5K Details'!J97 -> 0 | D85: =VLOOKUP(A85,'2017'!C$4:J$257,8,FALSE) -> 154 | E85: 0 | F85: =VLOOKUP(A85,'2017'!C$4:J$257,7,FALSE) -> 385 | G85: 0
A86: CLA222 | B86: Audio 2-Bulb Corridor Light | C86: ='R5K Details'!J98 -> 0 | D86: =VLOOKUP(A86,'2017'!C$4:J$257,8,FALSE) -> 130 | E86: 0 | F86: =VLOOKUP(A86,'2017'!C$4:J$257,7,FALSE) -> 325 | G86: 0
A87: CLA246 | B87: Audio 4-Bulb Corridor Light | C87: ='R5K Details'!J86 -> 142 | D87: =VLOOKUP(A87,'2017'!C$4:J$257,8,FALSE) -> 163 | E87: 23146 | F87: =VLOOKUP(A87,'2017'!C$4:J$257,7,FALSE) -> 408 | G87: 57936
A88: CLA214D | B88: Audio 4-Bulb Duty Corridor Light | C88: ='R5K Details'!J100 -> 0 | D88: =VLOOKUP(A88,'2017'!C$4:J$257,8,FALSE) -> 182 | E88: 0 | F88: =VLOOKUP(A88,'2017'!C$4:J$257,7,FALSE) -> 455 | G88: 0
A89: DCA200 | B89: Audio Domeless Controller - 6 pt | C89: ='R5K Details'!J101 -> 0 | D89: =VLOOKUP(A89,'2017'!C$4:J$257,8,FALSE) -> 137 | E89: 0 | F89: =VLOOKUP(A89,'2017'!C$4:J$257,7,FALSE) -> 343 | G89: 0
A90: DCA214D | B90: Audio Duty Domeless Controller - 6 pt | C90: ='R5K Details'!J102 -> 0 | D90: =VLOOKUP(A90,'2017'!C$4:J$257,8,FALSE) -> 153 | E90: 0 | F90: =VLOOKUP(A90,'2017'!C$4:J$257,7,FALSE) -> 383 | G90: 0
A91: DCA216 | B91: Audio Domeless Controller - 16 pt | C91: ='R5K Details'!J103 -> 0 | D91: =VLOOKUP(A91,'2017'!C$4:J$257,8,FALSE) -> 172 | E91: 0 | F91: =VLOOKUP(A91,'2017'!C$4:J$257,7,FALSE) -> 430 | G91: 0
A92: CLAR46 | B92: Four Station Audio Relay Kit | C92: ='R5K Details'!J87 -> 0 | D92: =VLOOKUP(A92,'2017'!C$4:J$257,8,FALSE) -> 51 | E92: 0 | F92: =VLOOKUP(A92,'2017'!C$4:J$257,7,FALSE) -> 128 | G92: 0
A93: R4KOUT4R | B93: Visual Relay Output Control | C93: ='R5K Details'!J105 -> 0 | D93: =VLOOKUP(A93,'2017'!C$4:J$257,8,FALSE) -> 41 | E93: 0 | F93: =VLOOKUP(A93,'2017'!C$4:J$257,7,FALSE) -> 103 | G93: 0
A94: R4KOUT4S | B94: Audio Solid State Relay Output Control | C94: ='R5K Details'!J106 -> 0 | D94: =VLOOKUP(A94,'2017'!C$4:J$257,8,FALSE) -> 50 | E94: 0 | F94: =VLOOKUP(A94,'2017'!C$4:J$257,7,FALSE) -> 125 | G94: 0
C100: Subtotal (R5K) | E100: =SUM(E9:E99) -> 131200 | G100: =SUM(G9:G99) -> 375441
A103: Software
A105: Model # | B105: Description | C105: Quantity | D105: Dist Net | E105: Extended Price | F105: List Price | G105: Extended List Price
A107: R5KMRPT | B107: Reporting Software License (1 per system) | C107: ='R5K Details'!J16 -> 1 | D107: =VLOOKUP(A107,'2017'!C$4:J$257,8,FALSE) -> 3000 | E107: =D107*C107 -> 3000 | F107: =VLOOKUP(A107,'2017'!C$4:J$257,7,FALSE) -> 9000 | G107: =F107*C107 -> 9000
A108: R5KMSIP | B108: SIP Telephony Software License (1 per system) | C108: ='R5K Details'!J17 -> 1 | D108: =VLOOKUP(A108,'2017'!C$4:J$257,8,FALSE) -> 1725 | E108: 1725 | F108: =VLOOKUP(A108,'2017'!C$4:J$257,7,FALSE) -> 5175 | G108: 5175
A109: 355005 | B109: Responder SIP Server (1 per System) | C109: ='R5K Details'!J18 -> 1 | D109: =VLOOKUP(A109,'2017'!C$4:J$257,8,FALSE) -> 1650 | E109: 1650 | F109: =VLOOKUP(A109,'2017'!C$4:J$257,7,FALSE) -> 4125 | G109: 4125
C110: Subtotal (Software) | E110: =SUM(E107:E109) -> 6375 | G110: =SUM(G107:G108) -> 14175
E111: SMA | F111: =E109*0.15 -> 247.5
A112: Accessories
A114: Model # | B114: Description | C114: Quantity | D114: Price | E114: Extended Price | F114: List Price | G114: Extended List Price
A116: 350018 | B116: Responder 8-pin SL Connector (Pack of 100) | C116: ='R5K Details'!J108 -> 27 | D116: =VLOOKUP(A116,'2017'!C$4:J$257,8,FALSE) -> 135 | E116: =D116*C116 -> 3645 | F116: =VLOOKUP(A116,'2017'!C$4:J$257,7,FALSE) -> 338 | G116: =F116*C116 -> 9126 | H116: # of R4K CL/DC
A117: 350006 | B117: Crimping tool Adapter | C117: ='R5K Details'!J111 -> 0 | D117: =VLOOKUP(A117,'2017'!C$4:J$257,8,FALSE) -> 33 | E117: 0 | F117: =VLOOKUP(A117,'2017'!C$4:J$257,7,FALSE) -> 83 | G117: =F117*C117 -> 0 | H117: =SUM('R5K Details'!J94:J103) -> 0
A118: R4KCONN6 | B118: 6-Pin connectors (Bag of 100) | C118: ='R5K Details'!J109 -> 0 | D118: =VLOOKUP(A118,'2017'!C$4:J$257,8,FALSE) -> 162 | E118: 0 | F118: =VLOOKUP(A118,'2017'!C$4:J$257,7,FALSE) -> 486 | G118: 0
A119: R4KCONN8 | B119: 8-Pin connectors (Bag of 100) | C119: ='R5K Details'!J110 -> 0 | D119: =VLOOKUP(A119,'2017'!C$4:J$257,8,FALSE) -> 196 | E119: 0 | F119: =VLOOKUP(A119,'2017'!C$4:J$257,7,FALSE) -> 490 | G119: 0
A120: R4KCRIMP | B120: Responder 4000 Crimp Tool | C120: ='R5K Details'!J113 -> 0 | D120: =VLOOKUP(A120,'2017'!C$4:J$257,8,FALSE) -> 20 | E120: 0 | F120: =VLOOKUP(A120,'2017'!C$4:J$257,7,FALSE) -> 60 | G120: 0
A121: R4KSTAC | B121: R4K Test Adapter Cables | C121: ='R5K Details'!J114 -> 0 | D121: =VLOOKUP(A121,'2017'!C$4:J$257,8,FALSE) -> 43 | E121: =D121*C121 -> 0 | F121: =VLOOKUP(A121,'2017'!C$4:J$257,7,FALSE) -> 129 | G121: =F121*C121 -> 0
A122: 350007 | B122: Station Removal Tool | C122: ='R5K Details'!J112 -> 0 | D122: =VLOOKUP(A122,'2017'!C$4:J$257,8,FALSE) -> 16 | E122: 0 | F122: =VLOOKUP(A122,'2017'!C$4:J$257,7,FALSE) -> 40 | G122: 0
A123: R4KKBS | B123: K-Bus Splitter | C123: ='R5K Details'!J115 -> 0 | D123: =VLOOKUP(A123,'2017'!C$4:J$257,8,FALSE) -> 14 | E123: 0 | F123: =VLOOKUP(A123,'2017'!C$4:J$257,7,FALSE) -> 42 | G123: 0
A124: R4KKBSP | B124: K-Bus Splitter w/ Power | C124: ='R5K Details'!J116 -> 0 | D124: =VLOOKUP(A124,'2017'!C$4:J$257,8,FALSE) -> 16 | E124: 0 | F124: =VLOOKUP(A124,'2017'!C$4:J$257,7,FALSE) -> 48 | G124: 0
A125: R4KFB1 | B125: Feature Bed Interface | C125: ='R5K Details'!J75 -> 0 | D125: =VLOOKUP(A125,'2017'!C$4:J$257,8,FALSE) -> 44 | E125: 0 | F125: =VLOOKUP(A125,'2017'!C$4:J$257,7,FALSE) -> 132 | G125: 0
A126: R4KSLC1 | B126: Single Light Control Module | C126: ='R5K Details'!J76 -> 0 | D126: =VLOOKUP(A126,'2017'!C$4:J$257,8,FALSE) -> 27 | E126: 0 | F126: =VLOOKUP(A126,'2017'!C$4:J$257,7,FALSE) -> 81 | G126: 0
A127: R4KDLC2 | B127: Dual Light Control Module | C127: ='R5K Details'!J77 -> 0 | D127: =VLOOKUP(A127,'2017'!C$4:J$257,8,FALSE) -> 45 | E127: 0 | F127: =VLOOKUP(A127,'2017'!C$4:J$257,7,FALSE) -> 135 | G127: 0
A128: R4KTVA | B128: TV Adapter pigtail kit (Set of 10) | C128: ='R5K Details'!J78 -> 0 | D128: =VLOOKUP(A128,'2017'!C$4:J$257,8,FALSE) -> 14 | E128: 0 | F128: =VLOOKUP(A128,'2017'!C$4:J$257,7,FALSE) -> 42 | G128: 0
A129: R4KTVR1 | B129: Digital TV Isolation Module | C129: ='R5K Details'!J79 -> 0 | D129: =VLOOKUP(A129,'2017'!C$4:J$257,8,FALSE) -> 18 | E129: 0 | F129: =VLOOKUP(A129,'2017'!C$4:J$257,7,FALSE) -> 54 | G129: 0
A130: NC4JACK | B130: 1/4" Jack Auxiliary Input Station | C130: ='R5K Details'!J132 -> 0 | D130: =VLOOKUP(A130,'2017'!C$4:J$257,8,FALSE) -> 78 | E130: 0 | F130: =VLOOKUP(A130,'2017'!C$4:J$257,7,FALSE) -> 195 | G130: 0
A131: NCBED | B131: 37-pin Feature Bed Receptacle | C131: ='R5K Details'!J133 -> 0 | D131: =VLOOKUP(A131,'2017'!C$4:J$257,8,FALSE) -> 58 | E131: 0 | F131: =VLOOKUP(A131,'2017'!C$4:J$257,7,FALSE) -> 145 | G131: 0
A132: NCC37 | B132: 37-pin Feature Bed Cable | C132: ='R5K Details'!J134 -> 0 | D132: =VLOOKUP(A132,'2017'!C$4:J$257,8,FALSE) -> 63 | E132: 0 | F132: =VLOOKUP(A132,'2017'!C$4:J$257,7,FALSE) -> 158 | G132: 0
A133: NCC37RA | B133: 37-pin Feature Bed Cable -Right Angle | C133: ='R5K Details'!J135 -> 0 | D133: =VLOOKUP(A133,'2017'!C$4:J$257,8,FALSE) -> 63 | E133: 0 | F133: =VLOOKUP(A133,'2017'!C$4:J$257,7,FALSE) -> 158 | G133: 0
A134: NCLV120 | B134: Low Voltage Lighting Control 120V | C134: ='R5K Details'!J136 -> 0 | D134: =VLOOKUP(A134,'2017'!C$4:J$257,8,FALSE) -> 85 | E134: 0 | F134: =VLOOKUP(A134,'2017'!C$4:J$257,7,FALSE) -> 213 | G134: 0
A135: 350008 | B135: Clear Station Cover (1 & 2 Button Stations) | C135: ='R5K Details'!J119 -> 0 | D135: =VLOOKUP(A135,'2017'!C$4:J$257,8,FALSE) -> 25 | E135: 0 | F135: =VLOOKUP(A135,'2017'!C$4:J$257,7,FALSE) -> 63 | G135: 0
A137: R4KCSC | B137: Clear Station Cover | D137: =VLOOKUP(A137,'2017'!C$4:J$257,8,FALSE) -> 28 | E137: =D137*C137 -> 0 | F137: =VLOOKUP(A137,'2017'!C$4:J$257,7,FALSE) -> 70 | G137: =F137*C137 -> 0
A138: R4KSTR | B138: Strain Relief Kit | C138: ='R5K Details'!J165 -> 0 | D138: =VLOOKUP(A138,'2017'!C$4:J$257,8,FALSE) -> 22 | E138: 0 | F138: =VLOOKUP(A138,'2017'!C$4:J$257,7,FALSE) -> 55 | G138: =F138*C138 -> 0
A139: R4KWM22 | B139: Wall Mount Kit for Annunciate Panel | C139: 0 | D139: =VLOOKUP(A139,'2017'!C$4:J$257,8,FALSE) -> 81 | E139: 0 | F139: =VLOOKUP(A139,'2017'!C$4:J$257,7,FALSE) -> 243 | G139: 0
A140: R4KDM22 | B140: Desk Mount Kit | C140: 0 | D140: =VLOOKUP(A140,'2017'!C$4:J$257,8,FALSE) -> 63 | E140: 0 | F140: =VLOOKUP(A140,'2017'!C$4:J$257,7,FALSE) -> 189 | G140: 0
A141: R4KHVK | B141: R4K 250v Kit For NC2828 | C141: ='R5K Details'!J121 -> 0 | D141: =VLOOKUP(A141,'2017'!C$4:J$257,8,FALSE) -> 116 | E141: =D141*C141 -> 0 | F141: =VLOOKUP(A141,'2017'!C$4:J$257,7,FALSE) -> 290 | G141: =F141*C141 -> 0
A142: CLS103 | B142: 3 Lamp High Security Dome Lite | C142: ='R5K Details'!J122 -> 0 | D142: =VLOOKUP(A142,'2017'!C$4:J$257,8,FALSE) -> 92 | E142: =D142*C142 -> 0 | F142: =VLOOKUP(A142,'2017'!C$4:J$257,7,FALSE) -> 276 | G142: =F142*C142 -> 0
A143: R5KPADP | B143: R5K Adapter Plates (10) | C143: ='R5K Details'!J117 -> 0 | D143: =VLOOKUP(A143,'2017'!C$4:J$257,8,FALSE) -> 37 | E143: =D143*C143 -> 0 | F143: =VLOOKUP(A143,'2017'!C$4:J$257,7,FALSE) -> 111 | G143: =F143*C143 -> 0
A144: 350026 | B144: R5 & R4K Single Gang Adapter Plates | C144: ='R5K Details'!J118 -> 0 | D144: =VLOOKUP(A144,'2017'!C$4:J$257,8,FALSE) -> 21 | E144: =D144*C144 -> 0 | F144: =VLOOKUP(A144,'2017'!C$4:J$257,7,FALSE) -> 53 | G144: =F144*C144 -> 0
C148: Subtotal (Accessories) | E148: =SUM(E116:E135,E137:E147) -> 3645 | G148: =SUM(G116:G147) -> 9126
A152: =A1 -> Responder 5000 Nurse Call System
A153: Bill of Materials - page 2 of 2
E154: Project Name: | F154: Project Name
E155: Date: | F155: =TODAY() -> 2018-01-11
A157: Pillow Speakers/Call Cords
A159: Model # | B159: Description | C159: Quantity | D159: Price | E159: Total | F159: List Price | G159: Extended List Price
A161: NCPSDSL2 | B161: Digital Pillow Speaker, 2 Lts | C161: ='R5K Details'!J124 -> 0 | D161: =VLOOKUP(A161,'2017'!C$4:J$257,8,FALSE) -> 110 | E161: =D161*C161 -> 0 | F161: =VLOOKUP(A161,'2017'!C$4:J$257,7,FALSE) -> 330 | G161: =F161*C161 -> 0
A162: NCPSDSTV | B162: Digital Pillow Speaker, TV | C162: ='R5K Details'!J125 -> 0 | D162: =VLOOKUP(A162,'2017'!C$4:J$257,8,FALSE) -> 110 | E162: =D162*C162 -> 0 | F162: =VLOOKUP(A162,'2017'!C$4:J$257,7,FALSE) -> 330 | G162: =F162*C162 -> 0
A163: NCPSKPL2 | B163: Direct Access Digital PS, 2 Lt | C163: ='R5K Details'!J126 -> 0 | D163: =VLOOKUP(A163,'2017'!C$4:J$257,8,FALSE) -> 115 | E163: 0 | F163: =VLOOKUP(A163,'2017'!C$4:J$257,7,FALSE) -> 345 | G163: 0
A164: NCPSKPTV | B164: Direct Access Digital PS, TV | C164: ='R5K Details'!J127 -> 0 | D164: =VLOOKUP(A164,'2017'!C$4:J$257,8,FALSE) -> 115 | E164: 0 | F164: =VLOOKUP(A164,'2017'!C$4:J$257,7,FALSE) -> 345 | G164: 0
A165: NCSAV | B165: DIN Cord Saver | C165: ='R5K Details'!J128 -> 0 | D165: =VLOOKUP(A165,'2017'!C$4:J$257,8,FALSE) -> 17 | E165: 0 | F165: =VLOOKUP(A165,'2017'!C$4:J$257,7,FALSE) -> 43 | G165: 0
A166: CCDIN3 | B166: Handheld Pendent - 2 Lights (8-pin DIN) | C166: ='R5K Details'!J129 -> 0 | D166: =VLOOKUP(A166,'2017'!C$4:J$257,8,FALSE) -> 47 | E166: 0 | F166: =VLOOKUP(A166,'2017'!C$4:J$257,7,FALSE) -> 118 | G166: 0
A167: CCDIN | B167: Call Cord - Single w/ Clip (10 ft.) | C167: ='R5K Details'!J130 -> 282 | D167: =VLOOKUP(A167,'2017'!C$4:J$257,8,FALSE) -> 22 | E167: =D167*C167 -> 6204 | F167: =VLOOKUP(A167,'2017'!C$4:J$257,7,FALSE) -> 55 | G167: 15510
A168: CC200 | B168: Call Cord - 1/4" Jack Call Cord w/ Clip (10ft.) | C168: ='R5K Details'!J131 -> 0 | D168: =VLOOKUP(A168,'2017'!C$4:J$257,8,FALSE) -> 18 | E168: 0 | F168: =VLOOKUP(A168,'2017'!C$4:J$257,7,FALSE) -> 45 | G168: 0
C169: Subtotal (PS/CC) | E169: =SUM(E161:E168) -> 6204 | G169: =SUM(G161:G168) -> 15510
A170: Other
A172: Model # | B172: Description | C172: Quantity | D172: Price | E172: Total | F172: List Price | G172: Extended List Price
A174: =IF('R5K Details'!B142="","",'R5K Details'!B142) -> STG | B174: =IF('R5K Details'!B142="","",'R5K Details'!E142) -> WaveWare SIP to Tap Gateway | C174: ='R5K Details'!J142 -> 1 | D174: =IF(F174="FQ","FQ",F174*F$4) -> FQ | E174: =IF(D174="FQ","FQ",D174*C174) -> FQ | F174: FQ | G174: =IF(F174="FQ","FQ") -> FQ
A175: =IF('R5K Details'!B143="","",'R5K Details'!B143) -> SPS-5V9E | B175: =IF('R5K Details'!B143="","",'R5K Details'!E143) -> WaveWare Paging Transmitter for STG, 5W, Site Licensing | C175: ='R5K Details'!J143 -> 1 | D175: FQ | E175: =IF(D175="FQ","FQ",D175*C175) -> FQ | F175: FQ | G175: =IF(F175="FQ","FQ") -> FQ
A176: =IF('R5K Details'!B144="","",'R5K Details'!B144) -> 0250-1250 | B176: =IF('R5K Details'!B144="","",IF('R5K Details'!A144<>"Rauland",'R5K Details'!E144,"")) -> WaveWare Responder 5000 Messaging Server | C176: ='R5K Details'!J144 -> 1 | D176: FQ | E176: FQ | F176: FQ | G176: FQ
A177: =IF('R5K Details'!B145="","",'R5K Details'!B145) -> 0250-1003 | B177: =IF('R5K Details'!B145="","",IF('R5K Details'!A145<>"Rauland",'R5K Details'!E145,"")) -> WaveWare 10 User Account Bundle (app licenses) | C177: ='R5K Details'!J145 -> 10000 | D177: FQ | E177: FQ | F177: FQ | G177: FQ
A178: =IF('R5K Details'!B146="","",'R5K Details'!B146) ->  | B178: =IF('R5K Details'!B148="","",IF('R5K Details'!A148<>"Rauland",'R5K Details'!E148,"")) ->  | C178: ='R5K Details'!J146 -> 0 | D178: =IF(F178="FQ","FQ",F178*F$4) -> 0 | E178: =IF(D178="FQ","FQ",(C178*D178)) -> 0 | F178: =VLOOKUP(A178,'2017'!C$4:J$257,7,FALSE) -> 0 | G178: =IF(F178="FQ","FQ",F178*C178) -> 0
A179: =IF('R5K Details'!B147="","",'R5K Details'!B147) ->  | B179: =IF('R5K Details'!B149="","",IF('R5K Details'!A149<>"Rauland",'R5K Details'!E149,"")) ->  | C179: ='R5K Details'!J147 -> 0 | D179: 0 | E179: 0 | F179: =VLOOKUP(A179,'2017'!C$4:J$257,7,FALSE) -> 0 | G179: =IF(F179="FQ","FQ",F179*C179) -> 0
A180: =IF('R5K Details'!B148="","",'R5K Details'!B148) ->  | B180: =IF('R5K Details'!B150="","",IF('R5K Details'!A150<>"Rauland",'R5K Details'!E150,"")) ->  | C180: ='R5K Details'!J148 -> 0 | D180: 0 | E180: 0 | F180: =VLOOKUP(A180,'2017'!C$4:J$257,7,FALSE) -> 0 | G180: 0
A181: =IF('R5K Details'!B149="","",'R5K Details'!B149) ->  | B181: =IF('R5K Details'!B151="","",IF('R5K Details'!A151<>"Rauland",'R5K Details'!E151,"")) ->  | C181: ='R5K Details'!J149 -> 0 | D181: 0 | E181: 0 | F181: =VLOOKUP(A181,'2017'!C$4:J$257,7,FALSE) -> 0 | G181: 0
G182: 0
B183: Subtotal (Other) | E183: =SUM(E174:E182) -> 0 | F183: list total | G183: =SUM(G174:G182) -> 0
A185: Bio-Seals
A187: Model # | B187: Description | C187: Quantity | D187: Price | E187: Extended Price | F187: List Price | G187: Extended List Price
A189: 350011 | B189: Bio-seals - Cancel Button (10) | C189: ='R5K Details'!J139 -> 0 | D189: =VLOOKUP(A189,'2017'!C$4:J$257,8,FALSE) -> 11 | E189: =D189*C189 -> 0 | F189: =VLOOKUP(A189,'2017'!C$4:J$257,7,FALSE) -> 28 | G189: =F189*C189 -> 0
A190: 350012 | B190: Bio-seals- Small Push-Button (10) | C190: ='R5K Details'!J140 -> 0 | D190: =VLOOKUP(A190,'2017'!C$4:J$257,8,FALSE) -> 11 | E190: =D190*C190 -> 0 | F190: =VLOOKUP(A190,'2017'!C$4:J$257,7,FALSE) -> 28 | G190: =F190*C190 -> 0
A191: 350013 | B191: Bio-seals- Large Push-Button (10) | C191: ='R5K Details'!J141 -> 0 | D191: =VLOOKUP(A191,'2017'!C$4:J$257,8,FALSE) -> 15 | E191: 0 | F191: =VLOOKUP(A191,'2017'!C$4:J$257,7,FALSE) -> 38 | G191: 0
A192: 350014 | B192: Bio-seals- Left side Pt Stn (10) | D192: =VLOOKUP(A192,'2017'!C$4:J$257,8,FALSE) -> 17 | E192: 0 | F192: =VLOOKUP(A192,'2017'!C$4:J$257,7,FALSE) -> 43 | G192: 0
A193: 350015 | B193: Bio-seals- Right side Pt.Stn (10) | D193: =VLOOKUP(A193,'2017'!C$4:J$257,8,FALSE) -> 17 | E193: 0 | F193: =VLOOKUP(A193,'2017'!C$4:J$257,7,FALSE) -> 43 | G193: 0
A194: 350016 | B194: Bio-seals- Staff Terminal LCD (5) | D194: =VLOOKUP(A194,'2017'!C$4:J$257,8,FALSE) -> 30 | E194: 0 | F194: =VLOOKUP(A194,'2017'!C$4:J$257,7,FALSE) -> 75 | G194: 0
C195: Subtotal (Bio-Seal) | E195: =SUM(E189:E194) -> 0 | G195: =SUM(G189:G194) -> 0
A198: Labor/Cable
A200: Model # | B200: Description | C200: Quantity | D200: Price | E200: Extended Price | F200: List Price | G200: Extended List Price
B202: Cable | C202: cable hours | D202: ='R5K Details'!O175 -> 536 | F202: Total cable price | G202: =Labor_Installation!K6 -> 0
B203: labor | C203: R5K Shop | D203: ='R5K Details'!O150 -> 0 | E203: R5K field hours | F203: ='R5K Details'!Q150 -> 839.8 | G203: =Labor_Installation!K7 -> 0
B204: misc | G204: =Labor_Installation!K8 -> 0
B205: Total R5K equipment dist net | G205: =E100+E110+E148+E169+E183+E195 -> 147424

Sheet Revision History
A1: Release Notes of AutoQuote Program
A2: Version | B2: Changes Included
A4: Version 1.31 | B4: 1. Corrected calculation of R5KL2KA
A6: Version 1.30 | B6: 1. Corrected R5KSDTY input from Auto Config tab.
A8: Version 1.29 | B8: 1. Corrected calculations for the CLA246 and CLAR46.
A10: Version 1.28 | B10: 1. Added the CLA246 and CLAR46.
A12: Version 1.27 | B12: 1. Corrected Pricing of Other items
B13: 2. Changed format of dropdown boxes on Input for Auto Config tab
A15: Version 1.26 | B15: 1. Added the RNC
A17: Version 1.25 | B17: 1. Edited device names/descriptions to fit in columns better
A19: Version 1.24 | B19: 1. Corrected SIP Telephony Integration calculation.
B20: 2. Corrected number of servers needed for Reports and SIP Integration.
A22: Version 1.23 | B22: 1. Corrected distributor discount displayed on Order tab.
A24: Version 1.22 | B24: 1. Added the R5K Messaging App.
A26: Version 1.21 | B26: 1. Corrected calculation of 351102
B27: 2. Final prices loaded.
A29: Version 1.20 | B29: 1. Added the 351102 Head End Cabinet
A31: Version 1.19 | B31: 1. Corrected power calculations for L2KA.
A33: Version 1.18 | B33: 1. Shifted CL before stations in Order list
A35: Version 1.17 | B35: 1. Changed all connectors to 350018 except R4KFB1.
B36: 2. Power calculations of R5K devices corrected.
B37: 3. Corrected 350008 showing the CSC in order.
A39: Version 1.16 | B39: 1. Include Fiber Adapter
B40: 2. Correct Calculations of R5K Termination Board.
B41: 3. Include Fiber Adapters
B42: 4. correct cables pricing and calculation area
B43: 5. Corrected cable calculation to be viewable. Corrected field labor calculations.
A46: Version 1.15 | B46: 1. Included R4KSTAC test cable.
A48: Version 1.14 | B48: 1. Corrected data validation and calculation of PA25.
A50: Version 1.13 | B50: 1. included R4KWM22 for Ann panel
A52: Version 1.12 | B52: 1. Corrected Server MSRP
B53: 2. Removed original R4K items
B54: 3. corrected MSC calculation
A56: Version 1.11 | B56: 1. Updated connector count for MQC, MST, R5CONS
B57: 2. Corrected MRPT and SDTY part numbers
A59: Version 1.10 | B59: 1. Added R4K single adapter plates
A62: Version 1.9 | B62: 1. Corrected L2KA calculations.
B63: 2. Corrected SMA fee to just RSS.
A65: Version 1.8 | B65: 1. Corrected pricing calculations
A67: Version 1.7 | B67: 1. Updated pricing.
B68: 2. Updated server specs to reference correct document.
A70: Version 1.6 | B70: 1. Corrected calculations of SIP server, PA25, WaveWare STG
A72: Version 1.5 | B72: 1. Edited macros.
B73: 1. Corrected MSC calculations with MQC and loading.
A75: Version 1.4 | B75: 1. Corrected Additional item calculation
A77: Version 1.3 | B77: 1. Added Responder SIP Server
B78: 2. Updated Order for SIP Server and Additional Items.
A80: Version 1.2 | B80: 1. Updated connector count.

Sheet 2017 (hidden)
A1: THIS DOCUMENT IS FOR INTERNAL USE ONLY. DO NOT DISTRIBUTE
A2: Pricelist | B2: FY 2018 Item Class | C2: Model # | D2: Description | E2: Warranty | F2: Carton Qty | G2: FY 2018 Suggested List Price $US | H2: FY 2018 Distributor Net Price $US | I2: FY 2018 Suggested List Price $Intl | J2: FY 2018 Distributor Net Price $Intl
B3: 5 | C3: 301103 | D3: Universal Wireless Wall Unit | E3: 60 | G3: =IFERROR(ROUNDUP(H3*2.5,0),"") -> 358 | H3: 143 | I3: =IFERROR(ROUNDUP(J3*2.5,0),"") -> 340 | J3: 136
A4: HC | B4: 5 | C4: 301200 | D4: Wireless Bed Unit-Socket (HR) | E4: 60 | G4: 378 | H4: 151 | I4: 363 | J4: 145
A5: HC | B5: 5 | C5: 301210 | D5: Wireless Bed Unit-Plug (Stryker) | E5: 60 | G5: 378 | H5: 151 | I5: 363 | J5: 145
A6: HC | B6: 5 | C6: 301300 | D6: Wireless Bed Interface-Demo | E6: 12 | G6: 1030 | H6: 412 | I6: 1030 | J6: 412
A7: HC | B7: 5 | C7: 350000 | D7: R5 Demo Kit | E7: 12 | G7: 34420 | H7: 13768 | I7: 34420 | J7: 13768
A8: HC | B8: 5 | C8: 350002 | D8: L-net T-tap Module (25) | E8: 18 | G8: 653 | H8: 261 | I8: 643 | J8: 257
A9: HC | B9: 5 | C9: 350003 | D9: L-net Term Resistor (10) | E9: 18 | G9: 560 | H9: 224 | I9: 540 | J9: 216
A10: HC | B10: 5 | C10: 350004 | D10: L-net Hub | E10: 18 | G10: 383 | H10: 153 | I10: 298 | J10: 119
A11: HC | B11: 5 | C11: 350005 | D11: M-net Divider Interface | E11: 18 | G11: 85 | H11: 34 | I11: 65 | J11: 26
A12: HC | B12: 5 | C12: 350014 | D12: Overlay Kit Left Side Stn (10) | E12: 18 | G12: 53 | H12: 21 | I12: 43 | J12: 17
A13: HC | B13: 5 | C13: 350015 | D13: Overlay Kit Right Side Stn(10) | E13: 18 | G13: 53 | H13: 21 | I13: 43 | J13: 17
A14: HC | B14: 5 | C14: 350016 | D14: Overlay Kit Staff Term Lcd (5) | E14: 18 | G14: 80 | H14: 32 | I14: 75 | J14: 30
A15: HC | B15: 5 | C15: 350017 | D15: L-net T-tap Insulator (25) | E15: 18 | G15: 78 | H15: 31 | I15: 53 | J15: 21
A16: HC | B16: 5 | C16: 350019 | D16: Responder 5 L-net Test Adapter | E16: 18 | G16: 85 | H16: 34 | I16: 70 | J16: 28
A17: HC | B17: 5 | C17: 350022 | D17: Clear Button Cover For 353001 | E17: 18 | G17: 48 | H17: 19 | I17: 43 | J17: 17
A18: HC | B18: 5 | C18: 350023 | D18: Clear Button Cover-4 Button S | E18: 18 | G18: 65 | H18: 26 | I18: 65 | J18: 26
A19: HC | B19: 5 | C19: 350024 | D19: Pillow Spker Cord Grip Kit 20 | E19: 18 | G19: 83 | H19: 33 | I19: 83 | J19: 33
A20: HC | B20: 5 | C20: 350026 | D20: 1-gang Adapter Plates (10) | E20: 18 | G20: 58 | H20: 23 | I20: 53 | J20: 21
A21: HC | B21: 5 | C21: 350030 | D21: Demo Panel Large R5 | E21: 12 | G21: 2128 | H21: 851 | I21: 2118 | J21: 847
A22: HC | B22: 5 | C22: 350031 | D22: Demo Panel Small R5 | E22: 12 | G22: 1890 | H22: 756 | I22: 1880 | J22: 752
A23: HC | B23: 5 | C23: 350100 | D23: Call Cord W/tilt Release Din | E23: 24 | G23: 80 | H23: 32 | I23: 80 | J23: 32
A24: HC | B24: 5 | C24: 350200 | D24: Enhncd Pillow Spkr-tv-digi Vol | E24: 24 | G24: 313 | H24: 125 | I24: 313 | J24: 125
A25: HC | B25: 5 | C25: 350201 | D25: Enhncd Pillowspkr-1lgt-digivol | E25: 24 | G25: 313 | H25: 125 | I25: 313 | J25: 125
A26: HC | B26: 5 | C26: 350202 | D26: Enhncd Pillowspkr-2lgt-digivol | E26: 24 | G26: 313 | H26: 125 | I26: 313 | J26: 125
A27: HC | B27: 5 | C27: 350205 | D27: Enhncd Pillow Spkr-tv-anlgvol | E27: 24 | G27: 313 | H27: 125 | I27: 313 | J27: 125
A28: HC | B28: 5 | C28: 350206 | D28: Enhanced Pillow Spkr 1 Light | E28: 24 | G28: 313 | H28: 125 | I28: 313 | J28: 125
A29: HC | B29: 5 | C29: 350207 | D29: Enhncd Pillowspkr 2 Lgt-anlgvo | E29: 24 | G29: 313 | H29: 125 | I29: 313 | J29: 125
A30: HC | B30: 5 | C30: 350220 | D30: Std Pillow Spkr-tv-digi Vol | E30: 24 | G30: 313 | H30: 125 | I30: 313 | J30: 125
A31: HC | B31: 5 | C31: 350221 | D31: Std Pillow Spkr-1 Lgt-digi Vol | E31: 24 | G31: 313 | H31: 125 | I31: 313 | J31: 125
A32: HC | B32: 5 | C32: 350222 | D32: Std Pillowspkr-2 Lgt-digi Vol | E32: 24 | G32: 313 | H32: 125 | I32: 313 | J32: 125
A33: HC | B33: 5 | C33: 350225 | D33: Std Pillow Spkr-tv-anlg Vol | E33: 24 | G33: 313 | H33: 125 | I33: 313 | J33: 125
A34: HC | B34: 5 | C34: 350226 | D34: Std Pillowspkr-1 Lgt-anlg Vol | E34: 24 | G34: 313 | H34: 125 | I34: 313 | J34: 125
A35: HC | B35: 5 | C35: 350227 | D35: Std Pillowspkr-2 Lgt-anlg Vol\ | E35: 24 | G35: 313 | H35: 125 | I35: 313 | J35: 125
A36: HC | B36: 5 | C36: 350240 | D36: Basic Pillow Speaker-tv | E36: 24 | G36: 213 | H36: 85 | I36: 213 | J36: 85
A37: HC | B37: 5 | C37: 350241 | D37: Basic Pillow Speaker-1 Light | E37: 24 | G37: 195 | H37: 78 | I37: 195 | J37: 78
A38: HC | B38: 5 | C38: 350242 | D38: Basic Pillow Speaker-2 Lights | E38: 24 | G38: 213 | H38: 85 | I38: 213 | J38: 85
A39: HC | B39: 5 | C39: 350300 | D39: Remote Tilt Release Din Stn | E39: 60 | G39: 255 | H39: 102 | I39: 205 | J39: 82
A40: HC | B40: 5 | C40: 350301 | D40: Remote Std 8-pin Din Station | E40: 60 | G40: 335 | H40: 134 | I40: 220 | J40: 88
A41: HC | B41: 5 | C41: 350302 | D41: Feature Bed Control Module | E41: 60 | G41: 193 | H41: 77 | I41: 185 | J41: 74
A42: HC | B42: 5 | C42: 351001 | D42: Branch Regional Controller V2 | E42: 60 | G42: 1860 | H42: 744 | I42: 1745 | J42: 698
A43: HC | B43: 5 | C43: 351002 | D43: Responder Ntwrk Adapter Module | E43: 60 | G43: 11685 | H43: 4674 | I43: 11573 | J43: 4629
A44: HC | B44: 5 | C44: 351003 | D44: Power Supply W/batt. Backup | E44: 60 | G44: 1318 | H44: 527 | I44: 1293 | J44: 517
A45: HC | B45: 5 | C45: 351004 | D45: 8 Port Ethernet Switch W/poe | E45: 60 | G45: 1268 | H45: 507 | I45: 1145 | J45: 458
A46: HC | B46: 5 | C46: 351006 | D46: Fiber Optic Adapter Module | E46: 60 | G46: 643 | H46: 257 | I46: 510 | J46: 204
A47: HC | B47: 5 | C47: 351010 | D47: Responder Network Concentrator | E47: 60 | G47: 12228 | H47: 4891 | I47: 12108 | J47: 4843
A48: HC | B48: 5 | C48: 351101 | D48: Rack Mount Kit For Switches | E48: 60 | G48: 113 | H48: 45 | I48: 110 | J48: 44
A49: HC | B49: 5 | C49: 351102 | D49: Wall Mounting Cabinet-head-end | E49: 60 | G49: 1190 | H49: 476 | I49: 1145 | J49: 458
A50: HC | B50: 5 | C50: 351201 | D50: Console Receptacle | E50: 60 | G50: 128 | H50: 51 | I50: 93 | J50: 37
A51: HC | B51: 5 | C51: 351203 | D51: Console Desk Stand | E51: 60 | G51: 180 | H51: 72 | I51: 158 | J51: 63
A52: HC | B52: 5 | C52: 351205 | D52: VoIP Nurse Console V2 | E52: 60 | G52: 2083 | H52: 833 | I52: 2113 | J52: 845
A53: HC | B53: 5 | C53: 351310 | D53: VoIP Staff Terminal V2 | E53: 60 | G53: 1613 | H53: 645 | I53: 1635 | J53: 654
A54: HC | B54: 5 | C54: 352000 | D54: Corridor Light - 4 Pos | E54: 60 | G54: 673 | H54: 269 | I54: 670 | J54: 268
A55: HC | B55: 5 | C55: 352004 | D55: Mini-corridor Light | E55: 60 | G55: 178 | H55: 71 | I55: 168 | J55: 67
A56: HC | B56: 5 | C56: 352010 | D56: Corridor Light - 4 Pos V2 | E56: 60 | G56: 605 | H56: 242 | I56: 613 | J56: 245
A57: HC | B57: 5 | C57: 352021 | D57: Domeless Controller v2 | E57: 60 | G57: 638 | H57: 255 | I57: 613 | J57: 245
A58: HC | B58: 5 | C58: 353000 | D58: Single Patient Station | E58: 60 | G58: 560 | H58: 224 | I58: 540 | J58: 216
A59: HC | B59: 5 | C59: 353001 | D59: Enhanced Single Patient Stn | E59: 60 | G59: 638 | H59: 255 | I59: 613 | J59: 245
A60: HC | B60: 5 | C60: 353010 | D60: Dual Patient Station | E60: 60 | G60: 683 | H60: 273 | I60: 655 | J60: 262
A61: HC | B61: 5 | C61: 353100 | D61: Duty Station | E61: 60 | G61: 553 | H61: 221 | I61: 533 | J61: 213
A62: HC | B62: 5 | C62: 353101 | D62: Staff Station | E62: 60 | G62: 568 | H62: 227 | I62: 515 | J62: 206
A63: HC | B63: 5 | C63: 353200 | D63: Remote Audio Output Station | E63: 60 | G63: 423 | H63: 169 | I63: 405 | J63: 162
A64: HC | B64: 5 | C64: 353201 | D64: Remote Audio Output Module | E64: 60 | G64: 368 | H64: 147 | I64: 315 | J64: 126
A65: HC | B65: 5 | C65: 354000 | D65: Pull-cord Station With Audio | E65: 60 | G65: 378 | H65: 151 | I65: 363 | J65: 145
A66: HC | B66: 5 | C66: 354001 | D66: Pull-cord Station | E66: 60 | G66: 173 | H66: 69 | I66: 153 | J66: 61
A67: HC | B67: 5 | C67: 354010 | D67: Cancel Station | E67: 60 | G67: =IFERROR(ROUNDUP(H67*2.5,0),"") -> 178 | H67: 71 | I67: =IFERROR(ROUNDUP(J67*2.5,0),"") -> 173 | J67: 69
A68: HC | B68: 5 | C68: 354011 | D68: Code Station | E68: 60 | G68: 178 | H68: 71 | I68: 173 | J68: 69
A69: HC | B69: 5 | C69: 354012 | D69: Staff Assist Station | E69: 60 | G69: 178 | H69: 71 | I69: 173 | J69: 69
A70: HC | B70: 5 | C70: 354015 | D70: Staff Assist / Code Station | E70: 60 | G70: 185 | H70: 74 | I70: 178 | J70: 71
A71: HC | B71: 5 | C71: 354016 | D71: Bed Management Station | E71: 60 | G71: 238 | H71: 95 | I71: 228 | J71: 91
A72: HC | B72: 5 | C72: 354017 | D72: Staff Registration Station | E72: 60 | G72: 238 | H72: 95 | I72: 228 | J72: 91
A73: HC | B73: 5 | C73: 354018 | D73: 2-jack Station | E73: 60 | G73: 253 | H73: 101 | I73: 205 | J73: 82
A74: HC | B74: 5 | C74: 354100 | D74: Input Module - 2 Point | E74: 60 | G74: 213 | H74: 85 | I74: 170 | J74: 68
A75: HC | B75: 5 | C75: 354101 | D75: Output Module-high Current | E75: 60 | G75: 270 | H75: 108 | I75: 235 | J75: 94
A76: HC | B76: 5 | C76: 354102 | D76: Output Module-Dry Contact | E76: 60 | G76: 228 | H76: 91 | I76: 185 | J76: 74
A77: HC | B77: 5 | C77: 354103 | D77: Output Module-Low Current | E77: 60 | G77: 233 | H77: 93 | I77: 188 | J77: 75
A78: HC | B78: 5 | C78: 355000 | D78: R5ware Firmware Diagnostics | E78: 12 | G78: 0 | H78: 0 | I78: 0 | J78: 0
A79: HC | B79: 5 | C79: NC2828 | D79: Head-End Equipment Cabinet | E79: 60 | G79: 1748 | H79: 699 | I79: 1680 | J79: 672
A80: HC | B80: 5 | C80: NC4JACK | D80: Auxiliary 4 Alarm Input Station | E80: 18 | G80: 203 | H80: 81 | I80: 195 | J80: 78
A81: HC | B81: 5 | C81: NCBED5 | D81: R5 Feature Bed Recep - 37 Pin | E81: 18 | G81: 158 | H81: 63 | I81: 158 | J81: 63
A82: HC | B82: 10 | C82: 355002 | D82: Interface-Telephone-25 Beds | E82: 12 | G82: 2413 | H82: 965 | I82: 2318 | J82: 927
A83: HC | B83: 10 | C83: 355005 | D83: Responder SIP Server | E83: 12 | G83: 4125 | H83: 1650 | I83: 4125 | J83: 1650
A84: HC | B84: 10 | C84: 356000 | D84: Responder 5 Demo Laptop | E84: 0 | G84: 8813 | H84: 3525 | I84: 8940 | J84: 3576
A85: HC | B85: 10 | C85: 366102 | D85: PC Console (R5 Apps) - 25 Beds | E85: 12 | G85: 2413 | H85: 965 | I85: 2318 | J85: 927
A86: HC | B86: 10 | C86: 366104 | D86: Staff Assignment Client-25 Beds | E86: 12 | G86: 2413 | H86: 965 | I86: 2318 | J86: 927
A87: HC | B87: 10 | C87: 366200 | D87: Reports Manager - 25 Beds | E87: 12 | G87: 2413 | H87: 965 | I87: 2318 | J87: 927
A88: HC | B88: 10 | C88: 366401 | D88: Interface-Location (RTLS)-25 Beds | E88: 12 | G88: 2413 | H88: 965 | I88: 2318 | J88: 927
A89: HC | B89: 10 | C89: 366402 | D89: Interface-HL7(ADT)-25 Beds | E89: 12 | G89: 2413 | H89: 965 | I89: 2318 | J89: 927
A90: HC | B90: 10 | C90: 366403 | D90: Interface-Resp Sync-25 Beds | E90: 12 | G90: 2413 | H90: 965 | I90: 2318 | J90: 927
A91: HC | B91: 10 | C91: 366404 | D91: All Touch EMR - 25 beds | E91: 12 | G91: 2413 | H91: 965 | I91: 2318 | J91: 927
A92: HC | B92: 10 | C92: 366406 | D92: All Touch Bed Mgmt-25 Beds | E92: 12 | G92: 2413 | H92: 965 | I92: 2318 | J92: 927
A93: HC | B93: 10 | C93: 366407 | D93: All Touch Iptv-25 Beds | E93: 12 | G93: 1208 | H93: 483 | I93: 1188 | J93: 475
A94: HC | B94: 10 | C94: 366409 | D94: All Touch Bed Info - 25 Beds | E94: 12 | G94: 1208 | H94: 483 | I94: 1188 | J94: 475
A95: HC | B95: 10 | C95: 366405-1 | D95: All Touch Wire.wkflw #1-25 Bed | E95: 12 | G95: 1208 | H95: 483 | I95: 1188 | J95: 475
A96: HC | B96: 10 | C96: 366405-2 | D96: All Touch Wire.wkflw #2-25 Bed | E96: 12 | G96: 1208 | H96: 483 | I96: 1188 | J96: 475
A97: HC | B97: 10 | C97: 366408-1 | D97: All Touch Med Devices-25 Beds | E97: 12 | G97: 1208 | H97: 483 | I97: 1188 | J97: 475
A98: HC | B98: 10 | C98: 366408-2 | D98: All Touch Med Devices-25 Beds | E98: 12 | G98: 1208 | H98: 483 | I98: 1188 | J98: 475
A99: HC | B99: 10 | C99: R5KMRPT | D99: R5K Application Module | E99: 12 | G99: =IFERROR(ROUNDUP(H99*3,0),"") -> 9000 | H99: 3000 | I99: =IFERROR(ROUNDUP(J99*3,0),"") -> 9000 | J99: 3000
A100: HC | B100: 10 | C100: R5KMSIP | D100: R5K Telephony Interface | E100: 12 | G100: =IFERROR(ROUNDUP(H100*3,0),"") -> 5175 | H100: 1725 | I100: =IFERROR(ROUNDUP(J100*3,0),"") -> 5175 | J100: 1725
A101: HC | B101: 11 | C101: 350006 | D101: Crimping Tool Adapter | E101: 12 | G101: =IFERROR(ROUNDUP(H101*2.5,0),"") -> 88 | H101: 35 | I101: =IFERROR(ROUNDUP(J101*2.5,0),"") -> 83 | J101: 33
A102: HC | B102: 11 | C102: 350007 | D102: Station Removal Tool | E102: 12 | G102: 50 | H102: 20 | I102: 40 | J102: 16
A103: HC | B103: 11 | C103: 350008 | D103: Clear Station Cover | E103: 18 | G103: 68 | H103: 27 | I103: 63 | J103: 25
A104: HC | B104: 11 | C104: 350009 | D104: 351003 Battery Kit | E104: 18 | G104: 118 | H104: 47 | I104: 110 | J104: 44
A105: HC | B105: 11 | C105: 350011 | D105: Overlay Kit Cancel Button (10) | E105: 18 | G105: 28 | H105: 11 | I105: 28 | J105: 11
A106: HC | B106: 11 | C106: 350012 | D106: Overlay Kit Sm Push Button(10) | E106: 18 | G106: 30 | H106: 12 | I106: 28 | J106: 11
A107: HC | B107: 11 | C107: 350013 | D107: Overlay Kit Lg Push Button(10) | E107: 18 | G107: 40 | H107: 16 | I107: 38 | J107: 15
A108: HC | B108: 11 | C108: 350018 | D108: 8pn Inlinecon Cat-5 Cat-6(100) | E108: 18 | G108: 368 | H108: 147 | I108: 338 | J108: 135
A109: HC | B109: 11 | C109: 350025 | D109: 3-gang Adapter Plates (10) | E109: 18 | G109: 78 | H109: 31 | I109: 85 | J109: 34
A110: HC | B110: 11 | C110: CC200 | D110: Call Cord w/Clip - 10FT | E110: 24 | G110: 45 | H110: 18 | I110: 45 | J110: 18
A111: HC | B111: 11 | C111: CCDIN | D111: Call Cord - Din Connector | E111: 24 | G111: 55 | H111: 22 | I111: 55 | J111: 22
A112: HC | B112: 11 | C112: CCDIN3 | D112: Handheld Pendant W/2 Lights | E112: 24 | G112: 118 | H112: 47 | I112: 118 | J112: 47
A113: HC | B113: 11 | C113: CM300 | D113: Chassis Fault Monitor | E113: 18 | G113: 385 | H113: 154 | I113: 363 | J113: 145
A114: HC | B114: 11 | C114: CP7385 | D114: Pushbutton for 1/4" Jack | E114: 18 | G114: 50 | H114: 20 | I114: 50 | J114: 20
A115: HC | B115: 11 | C115: DP300 | D115: Dummy Plug for DIN Jacks | E115: 18 | G115: 10 | H115: 4 | I115: 10 | J115: 4
A116: HC | B116: 11 | C116: DP7380 | D116: Dummy Plug for 1/4 | E116: 18 | G116: 10 | H116: 4 | I116: 10 | J116: 4
A117: HC | B117: 11 | C117: DTP4401 | D117: DIN-to-Plug Adapter | E117: 18 | G117: 40 | H117: 16 | I117: 40 | J117: 16
A118: HC | B118: 11 | C118: NCBED | D118: Feature Bed Receptacle - 37 pin | E118: 18 | G118: 145 | H118: 58 | I118: 145 | J118: 58
A119: HC | B119: 11 | C119: NCC37 | D119: Feature Bed Cable - 8ft | E119: 18 | G119: 158 | H119: 63 | I119: 158 | J119: 63
A120: HC | B120: 11 | C120: NCC37RA | D120: Feature Bed Cable - Right Angle | E120: 18 | G120: 158 | H120: 63 | I120: 158 | J120: 63
A121: HC | B121: 11 | C121: NCLV120 | D121: Low Volt Lt Control - 120V | E121: 18 | G121: 213 | H121: 85 | I121: 213 | J121: 85
A122: HC | B122: 11 | C122: NCLV240 | D122: Low Volt Lt Control - 240V | E122: 18 | G122: 213 | H122: 85 | I122: 213 | J122: 85
A123: HC | B123: 11 | C123: NCSAV | D123: DIN Cord Saver | E123: 18 | G123: 43 | H123: 17 | I123: 43 | J123: 17
A124: HC | B124: 11 | C124: PM300 | D124: Power Fault Monitor | E124: 18 | G124: 353 | H124: 141 | I124: 343 | J124: 137
A125: HC | B125: 11 | C125: R4KHVK | D125: 250v Kit For Nc2828 | G125: 303 | H125: 121 | I125: 290 | J125: 116
A126: HC | B126: 14 | C126: CLA214D | D126: R4k 4 Bulb Audio Duty Cl | E126: 60 | G126: 480 | H126: 192 | I126: 455 | J126: 182
A127: HC | B127: 14 | C127: CLA222 | D127: R4k 2 Bulb/6 Pt Audio Cl | E127: 60 | G127: 345 | H127: 138 | I127: 325 | J127: 130
A128: HC | B128: 14 | C128: CLA246 | D128: R4k 4 Bulb/6 Pt Audio Cl | E128: 60 | G128: 430 | H128: 172 | I128: 408 | J128: 163
A129: HC | B129: 14 | C129: CLAR46 | D129: R4k 4 Pt Audio Relay Kit | E129: 60 | G129: 133 | H129: 53 | I129: 128 | J129: 51
A130: HC | B130: 14 | C130: CLV122 | D130: R4k 2 Bulb/6 Pt Visual Cl | E130: 60 | G130: 250 | H130: 100 | I130: 235 | J130: 94
A131: HC | B131: 14 | C131: CLV144 | D131: R4k 4 Bulb/6 Pt Visual Cl | E131: 60 | G131: 285 | H131: 114 | I131: 270 | J131: 108
A132: HC | B132: 14 | C132: DCA200 | D132: R4k Audio 6 Pt Domeless Cntl | E132: 60 | G132: 365 | H132: 146 | I132: 343 | J132: 137
A133: HC | B133: 14 | C133: DCA214D | D133: R4k Audio Domeless Duty Cntl | E133: 60 | G133: 403 | H133: 161 | I133: 383 | J133: 153
A134: HC | B134: 14 | C134: DCA216 | D134: R4k 16 Pt Audio Domeless Cntl | E134: 60 | G134: 455 | H134: 182 | I134: 430 | J134: 172
A135: HC | B135: 14 | C135: DCV100 | D135: R4k 6 Pt Visual Domeless Cntl | E135: 60 | G135: 280 | H135: 112 | I135: 265 | J135: 106
A136: HC | B136: 14 | C136: DCV116 | D136: R4k 16 Pt Visual Domeless Cntl | E136: 60 | G136: 405 | H136: 162 | I136: 385 | J136: 154
A137: HC | B137: 14 | C137: R4K11V | D137: R4k Visual Single Call St | E137: 60 | G137: 98 | H137: 39 | I137: 95 | J137: 38
A138: HC | B138: 14 | C138: R4K12A | D138: R4k Audio Single Call St | E138: 60 | G138: 105 | H138: 42 | I138: 103 | J138: 41
A139: HC | B139: 14 | C139: R4K12AHZ | D139: R4k Horiz'l Single Audio St | E139: 60 | G139: 113 | H139: 45 | I139: 108 | J139: 43
A140: HC | B140: 14 | C140: R4K13VA | D140: R4k Enh Audio Single Call St | E140: 60 | G140: 215 | H140: 86 | I140: 203 | J140: 81
A141: HC | B141: 14 | C141: R4K13VAHZ | D141: R4k Horiz'l Enh Sgle Audio St | E141: 60 | G141: 218 | H141: 87 | I141: 205 | J141: 82
A142: HC | B142: 14 | C142: R4K14SA | D142: R4k Single Call St - W/emer | E142: 60 | G142: 140 | H142: 56 | I142: 130 | J142: 52
A143: HC | B143: 14 | C143: R4K16LV | D143: R4k Sgl Visual Lgt Ctl Call St | E143: 60 | G143: 173 | H143: 69 | I143: 163 | J143: 65
A144: HC | B144: 14 | C144: R4K21V | D144: R4k Dual Visual Call St | E144: 60 | G144: 130 | H144: 52 | I144: 125 | J144: 50
A145: HC | B145: 14 | C145: R4K22A | D145: R4k Dual Audio Call St | E145: 60 | G145: 143 | H145: 57 | I145: 133 | J145: 53
A146: HC | B146: 14 | C146: R4K23VA | D146: R4k Enh Dual Audio Call St | E146: 60 | G146: 268 | H146: 107 | I146: 253 | J146: 101
A147: HC | B147: 14 | C147: R4K4020 | D147: R4k Lcd Console | E147: 60 | G147: 1870 | H147: 748 | I147: 1770 | J147: 708
A148: HC | B148: 14 | C148: R4KBK400 | D148: R4k Battery Back-up Kit | E148: 60 | G148: 623 | H148: 249 | I148: 593 | J148: 237
A149: HC | B149: 14 | C149: R4KCB12 | D149: R4k Code Button Station | E149: 60 | G149: 103 | H149: 41 | I149: 98 | J149: 39
A150: HC | B150: 14 | C150: R4KCNCL | D150: R4k Cancel Station | E150: 60 | G150: 88 | H150: 35 | I150: 83 | J150: 33
A151: HC | B151: 14 | C151: R4KCONN8 | D151: R4k 8-pin Connectors - 100 | E151: 18 | G151: 518 | H151: 207 | I151: 490 | J151: 196
A152: HC | B152: 14 | C152: R4KCSC | D152: R4k Clear Station Cover | E152: 18 | G152: 73 | H152: 29 | I152: 70 | J152: 28
A153: HC | B153: 14 | C153: R4KDTY2 | D153: R4k Slim Duty St | E153: 60 | G153: 150 | H153: 60 | I153: 143 | J153: 57
A154: HC | B154: 14 | C154: R4KDY | D154: R4k Duty Station | E154: 60 | G154: 150 | H154: 60 | I154: 143 | J154: 57
A155: HC | B155: 14 | C155: R4KESR | D155: R4k Emer / Staff Register St | E155: 60 | G155: 113 | H155: 45 | I155: 108 | J155: 43
A156: HC | B156: 14 | C156: R4KNIM | D156: R4k Network Interface Module | E156: 60 | G156: 3088 | H156: 1235 | I156: 2870 | J156: 1148
A157: HC | B157: 14 | C157: R4KOUT4R | D157: R4k Visual Relay Output Cntl | E157: 60 | G157: 110 | H157: 44 | I157: 103 | J157: 41
A158: HC | B158: 14 | C158: R4KOUT4S | D158: R4k Audio Ss Output Cntl | E158: 60 | G158: 130 | H158: 52 | I158: 125 | J158: 50
A159: HC | B159: 14 | C159: R4KPB11 | D159: R4k Push For Help Button St | E159: 60 | G159: 98 | H159: 39 | I159: 90 | J159: 36
A160: HC | B160: 14 | C160: R4KPB22 | D160: R4k Dual Push Button St | E160: 60 | G160: 118 | H160: 47 | I160: 113 | J160: 45
A161: HC | B161: 14 | C161: R4KPB44 | D161: R4k Four Button Status St | E161: 60 | G161: 135 | H161: 54 | I161: 128 | J161: 51
A162: HC | B162: 14 | C162: R4KPC10 | D162: R4k Pull Cord St | E162: 60 | G162: 88 | H162: 35 | I162: 85 | J162: 34
A163: HC | B163: 14 | C163: R4KPIP | D163: R4k Peripheral Interface Port | E163: 60 | G163: 3120 | H163: 1248 | I163: 2903 | J163: 1161
A164: HC | B164: 14 | C164: R4KPLI | D164: R4k Phone Line Interface | E164: 60 | G164: 3973 | H164: 1589 | I164: 3768 | J164: 1507
A165: HC | B165: 14 | C165: R4KPR400 | D165: R4k Power Supply | E165: 60 | G165: =IFERROR(ROUNDUP(H165*2.5,0),"") -> 875 | H165: 350 | I165: =IFERROR(ROUNDUP(J165*2.5,0),"") -> 830 | J165: 332
A166: HC | B166: 14 | C166: R4KRSPIP | D166: R4k Reporting Sftw Interface | E166: 60 | G166: 8500 | H166: 3400 | I166: 8000 | J166: 3200
A167: HC | B167: 14 | C167: R4KSPA | D167: R4k Serial Peripheral Adapter | E167: 60 | G167: 565 | H167: 226 | I167: 535 | J167: 214
A168: HC | B168: 14 | C168: R4KSR1 | D168: R4k Staff Register St | E168: 60 | G168: 83 | H168: 33 | I168: 80 | J168: 32
A169: HC | B169: 14 | C169: R4KSS | D169: R4k Staff Station | E169: 60 | G169: 110 | H169: 44 | I169: 103 | J169: 41
A170: HC | B170: 14 | C170: R4KSTR | D170: R4k Strain Relief Kit | E170: 18 | G170: 58 | H170: 23 | I170: 55 | J170: 22
A171: HC | B171: 14 | C171: R4KTMB | D171: R4k K-bus Termination Board | E171: 60 | G171: 163 | H171: 65 | I171: 155 | J171: 62
A172: HC | B172: 14 | C172: R4KWARE | D172: R4k System Software Cd-rom | E172: 12 | G172: 4200 | H172: 1680 | I172: 4080 | J172: 1632
A173: HC | B173: 14 | C173: R4KWM11 | D173: R4k Console Wall Mount Kit | E173: 18 | G173: 365 | H173: 146 | I173: 348 | J173: 139
A174: HC | B174: 14 | C174: R4KXBA | D174: R4k X-bus Adapter | E174: 60 | G174: 10733 | H174: 4293 | I174: 10118 | J174: 4047
A175: HC | B175: 20 | C175: CLS103 | D175: R5K High Security Dome Lite 3 Lamp | E175: 18 | G175: =IFERROR(ROUNDUP(H175*3,0),"") -> 261 | H175: 87 | I175: =IFERROR(ROUNDUP(J175*3,0),"") -> 276 | J175: 92
A176: HC | B176: 20 | C176: HSS400 | D176: R5K High Security Audio Bed St | E176: 18 | G176: 774 | H176: 258 | I176: 774 | J176: 258
A177: HC | B177: 20 | C177: HSS401 | D177: R5K High Security Staff St | E177: 18 | G177: 774 | H177: 258 | I177: 774 | J177: 258
A178: HC | B178: 20 | C178: HSS433 | D178: R5K High Security Push Btn St | E178: 18 | G178: 774 | H178: 258 | I178: 774 | J178: 258
A179: HC | B179: 20 | C179: NCPSDSL2 | D179: R5K Digital Pillow Speaker 2 Lights | E179: 24 | G179: 330 | H179: 110 | I179: 330 | J179: 110
A180: HC | B180: 20 | C180: NCPSDSTV | D180: R5K Digital Pillow Speaker TV Only | E180: 24 | G180: 330 | H180: 110 | I180: 330 | J180: 110
A181: HC | B181: 20 | C181: NCPSKPL2 | D181: R5K Direct Access Pillow Speaker 2 Lights | E181: 24 | G181: 345 | H181: 115 | I181: 345 | J181: 115
A182: HC | B182: 20 | C182: NCPSKPTV | D182: R5K Direct Access Pillow Speaker TV Only | E182: 24 | G182: 345 | H182: 115 | I182: 345 | J182: 115
A183: HC | B183: 20 | C183: R4K15V | D183: R5K Patient Station w 1/4" Jack & Button | E183: 60 | G183: 120 | H183: 40 | I183: 123 | J183: 41
A184: HC | B184: 20 | C184: R4K17V | D184: R5K Enhanced Single Patient Stn w/DIN | E184: 60 | G184: 186 | H184: 62 | I184: 186 | J184: 62
A185: HC | B185: 20 | C185: R4K2JACK | D185: R5K Dual 1/4" Jack Station | E185: 60 | G185: 135 | H185: 45 | I185: 135 | J185: 45
A186: HC | B186: 20 | C186: R4KANNV2 | D186: R5K Annunciator Panel v2 | E186: 60 | G186: 825 | H186: 275 | I186: 882 | J186: 294
A187: HC | B187: 20 | C187: R4KCAL | D187: R5K Call Assurance Light | E187: 60 | G187: 75 | H187: 25 | I187: 81 | J187: 27
A188: HC | B188: 20 | C188: R4KCB13 | D188: R5K Code Blue Station | E188: 60 | G188: 102 | H188: 34 | I188: 102 | J188: 34
A189: HC | B189: 20 | C189: R4KCONN6 | D189: R5K 6-pin Connectors - 100 | E189: 18 | G189: 483 | H189: 161 | I189: 486 | J189: 162
A190: HC | B190: 20 | C190: R4KCRIMP | D190: R5K Crimping Tool | E190: 60 | G190: 60 | H190: 20 | I190: 60 | J190: 20
A191: HC | B191: 20 | C191: R4KDLC2 | D191: R5K Dual Light Cntl Mod | E191: 60 | G191: 123 | H191: 41 | I191: 135 | J191: 45
A192: HC | B192: 20 | C192: R4KDM22 | D192: R5K Desk Mount Kit for ANN Panel | E192: 60 | G192: 180 | H192: 60 | I192: 189 | J192: 63
A193: HC | B193: 20 | C193: R4KFAM | D193: R5K Fire/auxiliary Module | E193: 60 | G193: 105 | H193: 35 | I193: 117 | J193: 39
A194: HC | B194: 20 | C194: R4KFB1 | D194: R5K Feature Bed Interface | E194: 60 | G194: 120 | H194: 40 | I194: 132 | J194: 44
A195: HC | B195: 20 | C195: R4KKBS | D195: R5K K-bus Splitter | E195: 60 | G195: 39 | H195: 13 | I195: 42 | J195: 14
A196: HC | B196: 20 | C196: R4KKBSP | D196: R5K K-bus Splitter - With Pwr | E196: 60 | G196: 42 | H196: 14 | I196: 48 | J196: 16
A197: HC | B197: 20 | C197: R4KMQCV2 | D197: R5K Marquee Controller v2 | E197: 60 | G197: 465 | H197: 155 | I197: 507 | J197: 169
A198: HC | B198: 20 | C198: R4KMST | D198: R5K Marquee Speaker St W/mute | E198: 60 | G198: 114 | H198: 38 | I198: 123 | J198: 41
A199: HC | B199: 20 | C199: R4KPA25 | D199: R5K Paging Amplifier -25 Watt | E199: 60 | G199: 762 | H199: 254 | I199: 858 | J199: 286
A200: HC | B200: 20 | C200: R4KPB12 | D200: R5K Single Button Station | E200: 60 | G200: 90 | H200: 30 | I200: 90 | J200: 30
... 40 more rows

Sheet DropDowns (hidden)
A1: R5KPD2EA - Enhnaced Dual Patient Station | B1: R5KPD2EA
A2: R5KPS1EA - Enhanced Single Station | B2: R5KPS1EA | D2: Yes
A3: R5KPD2A - Dual Patient Station | B3: R5KPD2A | D3: No | E3: =E2+10 -> 10
A4: R5KPS1A - Single Audio Patient Station | B4: R5KPS1A | E4: =E3+10 -> 20
A5: R5KPS1V - Single Patient Visual Station | B5: R5KPS1V | E5: =E4+10 -> 30
A6: R5KPS1LCA - Audio Single Patient Station with Lighting Control | B6: R5KPS1LCA | E6: 40
A7: R5KSSTF - Staff Station | B7: R5KSSTF | E7: 50
A8: R5KSDTY - Duty Station | B8: R5KSDTY | E8: 60
A9: R4K15V - SLIM 1/4" Jack / Button St | B9: R4K15V
A10: R4K17V - SLIM Enh Single Call St | B10: R4K17V
A11: HSS400 - High Security Audio Bed Station | B11: HSS400
A12: HSS401 - High Security Staff Station | B12: HSS401
A13: HSS433 - High Security Push Button Station | B13: HSS433
A14: R5KPB4 - 4-button Workflow and Registration Station | B14: R5KPB4
A15: R4K2JACK - SLIM Dual 1/4" Jack St | B15: R4K2JACK
A16: R4KCB13 - SLIM Code Button St | B16: R4KCB13
A17: R4KPB12 - SLIM Single Button St | B17: R4KPB12
A18: R4KPB23 - SLIM Dual Button w/ Code St | B18: R4KPB23
A19: R4KPC11 - SLIM Pull Cord St | B19: R4KPC11
A20: R4KSAR - SLIM Dual Button St | B20: R4KSAR | G20: R5KPC11WP - Waterproof Pullcord Station | H20: R5KPC11WP
A21: R4KSPK - SLIM Speaker Module | B21: R4KSPK | G21: R5KPC11WPS - Waterproof Pullcord Station - Spanish | H21: R5KPC11WPS
A22: NC4JACK - 1/4" Jack Auxiliary Input Station | B22: NC4JACK | G22: R5KPC11WPF - Waterproof Pullcord Station - French | H22: R5KPC11WPF
A23: R4KFB1 - Feature Bed Interface | B23: R4KFB1
A24: R5KCL506 - 5-Bulb, Visual Corridor Light | B24: R5KCL506
A25: R5KCL516 - 5-Bulb, 1-Point Audio Corridor Light | B25: R5KCL516
A26: R5KCL546 - 5-Bulb, 4-Point Audio Corridor Light | B26: R5KCL546
A27: R5KDC06 - 6-Point Visual Domeless Controller | B27: R5KDC06
A28: R5KDC016 - 16-Point Visual Domeless Controller | B28: R5KDC016
A29: R5KDC46 - 6-Point, 4-Point Audio Domeless Controller | B29: R5KDC46
A30: R5KDC16D - 6-Point, 1 Point Audio Duty Domeless Controller | B30: R5KDC16D
A31: CLA246 - 4Bulb/1-Point Audio R4K Corridor Light | B31: CLA246
A32: CLAR46 - 4 Audio Point Relay Module | B32: CLAR46
H33: Number of Bed Stations | I33: =SUM('R5K Details'!J30:J36,'R5K Details'!J42:J55) -> 282
H34: Number of MSCs Needed (95% loading) | I34: =IF(I42=0,0,IF(I42<=87,1,IF(I42<=174,2,IF(I42<=261,3,IF(I42<=348,4,IF(I42<=435,5,IF(I42<=522,6,IF(I42<=609,7,IF(I42<=696,8,IF(I42<=783,9,IF(I42<=870,10,IF(I42<=957,11,IF(I42<=1044,12,0))))))))))))) -> 3
H35: Number of Visual and Audio CL/DC Selected | I35: =SUM('R5K Details'!J83:J91) -> 363
H36: Number of Audio Stations | I36: =SUM('R5K Details'!J30:J33,'R5K Details'!J35:J36,'R5K Details'!J54:J55,'R5K Details'!J66) -> 282
H37: Number of Audio CL/DC Needed | I37: =I36 -> 282
H38: Number of Audio CL/DC Selected | I38: =SUM('R5K Details'!J84:J85,'R5K Details'!J90) -> 218
H39: Number of Visual CL/DC Needed | I39: =I35-I36 -> 81
H40: Number of Visual CL/DC Selected | I40: =SUM('R5K Details'!J83,'R5K Details'!J88:J89) -> 0
H41: Number Duty DC Selected | I41: ='R5K Details'!J91 -> 3
H42: Total Number of CLs/DCs Selected | I42: =SUM(I38,I40,I43,I41) -> 221
H43: Number of Marquee controllers | I43: ='R5K Details'!J20 -> 0
H44: calculations for L2 needed | I44: =IF(I42=0,0,IF(I42<=24,1,IF(I42<=48,2,IF(I42<=72,3,IF(I42<=96,4,IF(I42<=120,5,IF(I42<=164,6,IF(I42<=188,7,IF(I42<=212,8,IF(I42<=236,9,IF(I42<=260,10,IF(I42<=284,11,IF(I42<=308,12,IF(I42<=332,13,IF(I42<=356,14,IF(I42<=380,15,IF(I42<=404,16,IF(I42<=428,17,IF(I42<=452,18,IF(I42>=476,12,0)))))))))))))))))))) -> 9
H45: calculations for L2 needed | I45: =IF(I42<=476,0,IF(I42<=500,1,IF(I42<=524,2,IF(I42<=548,3,IF(I42<=572,4,IF(I42<=596,5,IF(I42<=620,6,IF(I42<=644,7,IF(I42<=668,8,IF(I42<=692,9,IF(I42<=716,10,IF(I42<=740,11,IF(I42<=764,12,IF(I42<=788,13,IF(I42<=812,14,IF(I42<=836,15,IF(I42<=860,16,IF(I42<=884,17,IF(I42<=908,18,IF(I42<=932,19,IF(I42<=956,20,IF(I42<=980,21,IF(I42<=1004,22,0))))))))))))))))))))))) -> 0
H46: Number of L2 Needed | I46: =I44+I45 -> 9
H47: Number of Consoles
H48: Number of ANN Panels
A69: R5KDCRC4 - Relay Output Control | B69: R5KDCRC4
A70: R5KDCRCS4 - Solid State Relay Output Control | B70: R5KDCRCS4
A71: NCPSDSL2 - Digital Pillow Speaker, 2 Lts | B71: NCPSDSL2
A72: NCPSDSTV - Digital Pillow Speaker, TV | B72: NCPSDSTV
A73: NCPSKPL2 - Direct Access Digital PS, 2 Lt | B73: NCPSKPL2
A74: NCPSKPTV - Direct Access Digital PS, TV | B74: NCPSKPTV
A75: NCSAV - DIN Cord Saver | B75: NCSAV
A76: CCDIN - Call Cord - Single w/ Clip (10 ft.) | B76: CCDIN
A77: CC200 - Call Cord - 1/4" Jack Call Cord w/ Clip (10ft.) | B77: CC200
A78: 350008 - Clear Station Cover (SLIM 1 & 2 Buttons Station) | B78: 350008
A79: R4KFB1 - Feature Bed Interface | B79: R4KFB1
A80: R4KSLC1 - Single Light Control Module | B80: R4KSLC1
A81: R4KDLC2 - Dual Light Control Module | B81: R4KDLC2
A82: R4KTVA - TV Adapter pigtail kit (Set of 10) | B82: R4KTVA
A83: R4KTVR1 - Digital TV Isolation Module | B83: R4KTVR1
A84: NCLV120 - Low Voltage Lighting Control 120V | B84: NCLV120
A85: R4KCAL - Call Assurance Light | B85: R4KCAL
A86: R4KFAM Fire/Auxiliary Module | B86: R4KFAM
